Workbook

Sheet AER only (hidden)
B1: Data in these columns used for data validation and database purposes.
B2: Date last modified: | C2: 2016-08-08 | D2: added new business names, improved column heading formatting
C3: 2016-09-21 | D3: changed APA Gasnet trading names
AC4: FOR ELECTRICITY BUSINESSES ONLY
AC5: Feeder Types | AG5: TasNetworks (D) | AH5: MAIFI flag | AI5: Feeder Names
AC6: CBD | AD6: Urban | AE6: Short rural | AF6: long rural | AG6: EXTRA
B7: dms_TradingName_List | C7: dms_TradingNameFull_List | D7: dms_ABN_List | E7: dms_JurisdictionList | F7: dms_Sector_List | G7: dms_Segment_List | H7: dms_FormControl_List | I7: dms_RPT_List | J7: dms_RPTMonth_List | K7: dms_CRCPlength_List | L7: dms_FRCPlength_List | M7: dms_663_List | N7: dms_DeterminationRef_List | O7: dms_Addr1_List | P7: dms_Addr2_List | Q7: dms_Suburb_List | R7: dms_State_List | S7: dms_PostCode_List | T7: dms_PAddr1_List | U7: dms_PAddr2_List | V7: dms_PSuburb_List | W7: dms_PState_List | X7: dms_PPostCode_List | Y7: dms_ContactName1_List | Z7: dms_ContactPh1_List | AA7: dms_ContactEmail_List | AC7: dms_CBD_flag | AD7: dms_Urban_flag | AE7: dms_ShortRural_flag | AF7: dms_LongRural_flag | AG7: dms_FeederType_5_flag | AH7: dms_MAIFI_flag_List | AI7: dms_FeederName_1 | AJ7: dms_FeederName_2 | AK7: dms_FeederName_3 | AL7: dms_FeederName_4 | AM7: dms_FeederName_5
B8: ActewAGL Distribution | C8: ActewAGL Distribution | D8: 76670568688 | E8: ACT | F8: Electricity | G8: Distribution | H8: Revenue cap | I8: Financial | J8: June | K8: 5 | L8: 5 | M8: 5 | N8: 2014-19 Distribution Determination | O8: 40 Bunda Street | Q8: CANBERRA | R8: ACT | S8: 2600 | T8: GPO BOX 366 | V8: CANBERRA | W8: ACT | X8: 2601 | Y8: Robert Walker | Z8: 02 6248 3847 | AA8: robert.walker@actewagle.com.au | AC8: NO | AD8: YES | AE8: YES | AF8: NO | AG8: NO | AI8: CBD | AJ8: Urban | AK8: Short rural | AL8: Long rural | AN8: ActewAGL Distribution
B9: ActewAGL Distribution (Tx Assets) | C9: ActewAGL Distribution (Tx Assets) | D9: 76670568688 | E9: ACT | F9: Electricity | G9: Distribution | H9: Revenue cap | I9: Financial | J9: June | K9: 5 | L9: 5 | M9: 5 | N9: distribution determination | O9: 40 Bunda Street | Q9: CANBERRA | R9: ACT | S9: 2600 | T9: GPO BOX 366 | V9: CANBERRA | W9: ACT | X9: 2601 | Y9: Robert Walker | Z9: 02 6248 3847 | AA9: robert.walker@actewagle.com.au | AI9: CBD | AJ9: Urban | AK9: Short rural | AL9: Long rural | AN9: ActewAGL Distribution (Tx Assets)
B10: ActewAGL Gas | C10: ActewAGL Gas | D10: 76670568688 | E10: ACT | F10: Gas | G10: Distribution | H10: Weighted average price cap | I10: Financial | J10: June | K10: 5 | L10: 5 | M10: x | O10: 40 Bunda Street | Q10: CANBERRA | R10: ACT | S10: 2600 | T10: GPO BOX 366 | V10: CANBERRA | W10: ACT | X10: 2601 | Y10: Philip Deamer | Z10: 02 6248 3438 | AA10: GasAAReview@actewagl.com.au | AN10: ActewAGL Gas
B11: AGN (SA) | C11: AGN (SA) | D11: 78551685 | E11: SA | F11: Gas | G11: Distribution | H11: Revenue cap | I11: Financial | J11: June | K11: 5 | L11: 5 | M11: 5 | N11: distribution determination | R11: SA | AI11: CBD | AJ11: Urban | AK11: Short rural | AL11: Long rural | AN11: AGN (SA)
B12: AGN (Victoria) | C12: Australian Gas Networks Limited | D12: 19078551685 | E12: Vic | F12: Gas | G12: Distribution | H12: Weighted average price cap | I12: Calendar | J12: December | K12: 5 | L12: 5 | M12: x | O12: Level 10 | P12: 81 Flinders Street | Q12: ADELAIDE | R12: SA | S12: 5000 | Z12: 08 8227 1500 | AN12: AGN (Victoria)
B13: Amadeus | C13: APT Pipelines (NT) Pty Ltd | D13: 39009737393 | E13: NT | F13: Gas | G13: Transmission | H13: Weighted average price cap | I13: Financial | J13: June | K13: 5 | L13: 5 | M13: x | N13: n/a | O13: Level 19, HSBC Building | P13: 580 George Street | Q13: SYDNEY | R13: NSW | S13: 2000 | T13: Level 19, HSBC Building | U13: 580 George Street | V13: SYDNEY | W13: NSW | X13: 2000 | Y13: Alexandra Curran | Z13: 02 9275 0020 | AA13: alexandra.curran@apa.com.au | AN13: Amadeus
B14: APA VTS | C14: APA VTS Australia (Operations) Pty Ltd | D14: 65083009 | E14: Vic | F14: Gas | G14: Transmission | H14: Weighted average price cap | I14: Calendar | J14: December | K14: 5 | L14: 5 | M14: x | O14: Level 19, HSBC Building | P14: 580 George Street | Q14: SYDNEY | R14: NSW | S14: 2000 | T14: PO Box R41 | V14: ROYAL EXCHANGE | W14: NSW | X14: 1225 | Z14: 02 9693 0000 | AN14: APA GasNet
B15: Ausgrid | C15: Ausgrid | D15: 67505337385 | E15: NSW | F15: Electricity | G15: Distribution | H15: Revenue cap | I15: Financial | J15: June | K15: 5 | L15: 5 | M15: 5 | N15: 2014-19 Distribution Determination | O15: 570 George St | Q15: SYDNEY | R15: NSW | S15: 2000 | Y15: John Thomson | Z15: (02) 9269 2312 | AA15: john.thomson@ausgrid.com.au | AC15: YES | AD15: YES | AE15: YES | AF15: YES | AG15: NO | AI15: CBD | AJ15: Urban | AK15: Short rural | AL15: Long rural | AN15: Ausgrid
B16: Ausgrid (Tx Assets) | C16: Ausgrid (Tx Assets) | D16: 67505337385 | E16: NSW | F16: Electricity | G16: Distribution | H16: Revenue cap | I16: Financial | J16: June | K16: 5 | L16: 5 | M16: 5 | N16: distribution determination | R16: NSW | AI16: CBD | AJ16: Urban | AK16: Short rural | AL16: Long rural | AN16: Ausgrid (Tx Assets)
B17: AusNet (D) | C17: AusNet Services (D) | D17: 91064651118 | E17: Vic | F17: Electricity | G17: Distribution | H17: Revenue cap | I17: Calendar | J17: December | K17: 5 | L17: 5 | M17: 2 | N17: 2016-20 Distribution Determination | O17: Level 32 | P17: 2 Southbank Boulevard | Q17: SOUTHBANK | R17: Vic | S17: 3006 | T17: Locked Bag 14051 | V17: MELBOURNE CITY MAIL CENTRE | W17: VIC | X17: 8001 | Y17: Hannah Williams | Z17: 03 9683 4088 | AA17: hwilliams@powercor.com.au | AD17: YES | AE17: YES | AF17: YES | AG17: NO | AI17: CBD | AJ17: Urban | AK17: Short rural | AL17: Long rural | AN17: AusNet (D)
B18: AusNet (Gas) | C18: AusNet Gas Services | D18: 86015036 | E18: Vic | F18: Gas | G18: Distribution | H18: Weighted average price cap | I18: Calendar | J18: December | K18: 5 | L18: 5 | M18: X | AN18: AusNet (Gas)
B19: AusNet (T) | C19: AusNet (T) | D19: 78079798173 | E19: Vic | F19: Electricity | G19: Transmission | H19: Revenue cap | I19: Financial | J19: March | K19: 5 | L19: 5 | M19: 2 | N19: transmission determination | O19: Level 32 | P19: 2 Southbank Boulevard | Q19: SOUTHBANK | R19: Vic | S19: 3006 | T19: Locked Bag 14051 | V19: MELBOURNE CITY MAIL CENTRE | W19: Vic | X19: 8001 | Y19: Clare Thompson | Z19: 03 9695 6670 | AA19: clare.e.thompson@ausnetservices.com.au | AI19: CBD | AJ19: Urban | AK19: Short rural | AL19: Long rural | AN19: AusNet (T)
B20: Australian Distribution Co. | C20: Australian Distribution Co. | D20: 11222333444 | E20: - | F20: Electricity | G20: Distribution | H20: Revenue cap | I20: Financial | J20: June | K20: 5 | L20: 5 | M20: 2 | N20: distribution determination | O20: 123 Straight Street | Q20: SYDNEY | R20: NSW | S20: 2000 | T20: PO Box 123 | V20: SYDNEY | W20: NSW | X20: 2000 | Y20: Bob Smith | Z20: 02 1234 5678 | AA20: bob@auselec.net.au | AI20: CBD | AJ20: Urban | AK20: Short rural | AL20: Long rural | AN20: Australian Distribution Co.
B21: Australian Transmission Co. | C21: Australian Transmission Co. | D21: 11222333444 | E21: - | F21: Electricity | G21: Transmission | H21: Revenue cap | I21: Financial | J21: June | K21: 5 | L21: 5 | M21: 5 | N21: transmission determination | O21: 123 Straight Street | Q21: SYDNEY | R21: NSW | S21: 2000 | T21: PO Box 123 | V21: SYDNEY | W21: NSW | X21: 2000 | Y21: Bob Smith | Z21: 02 1234 5678 | AA21: bob@auselec.net.au | AI21: CBD | AJ21: Urban | AK21: Short rural | AL21: Long rural | AN21: Australian Transmission Co.
B22: CitiPower | C22: CitiPower | D22: 76064651056 | E22: Vic | F22: Electricity | G22: Distribution | H22: Revenue cap | I22: Calendar | J22: December | K22: 5 | L22: 5 | M22: 2 | N22: 2016-20 Distribution Determination | O22: 40 Market Street | Q22: MELBOURNE | R22: Vic | S22: 3000 | T22: Locked Bag 14090 | V22: MELBOURNE | W22: VIC | X22: 8001 | Y22: Hannah Williams | Z22: 03 9683 4088 | AA22: hwilliams@powercor.com.au | AC22: YES | AD22: YES | AE22: NO | AF22: NO | AG22: NO | AI22: CBD | AJ22: Urban | AK22: Short rural | AL22: Long rural | AN22: CitiPower
B23: Directlink | C23: Directlink | D23: 16779340889 | E23: Qld | F23: Electricity | G23: Transmission | H23: Revenue cap | I23: Financial | J23: June | K23: 9 | L23: 5 | M23: 5 | N23: transmission determination | R23: NSW | AI23: CBD | AJ23: Urban | AK23: Short rural | AL23: Long rural | AN23: Directlink
B24: ElectraNet | C24: ElectraNet | D24: 41094482416 | E24: SA | F24: Electricity | G24: Transmission | H24: Revenue cap | I24: Financial | J24: June | K24: 5 | L24: 5 | M24: 5 | N24: transmission determination | O24: 52-55 East Terrace | P24: Rymill Park | Q24: ADELAIDE | R24: SA | S24: 5000 | T24: PO Box 7096 | U24: Hutt Street Post Office | V24: ADELAIDE | W24: SA | X24: 5000 | Y24: Bill Jackson | Z24: 08 8404 7969 | AA24: jackson.bill@electranet.com.au | AI24: CBD | AJ24: Urban | AK24: Short rural | AL24: Long rural | AN24: ElectraNet
B25: Endeavour Energy | C25: Endeavour Energy | D25: 59253130878 | E25: NSW | F25: Electricity | G25: Distribution | H25: Revenue cap | I25: Financial | J25: June | K25: 5 | L25: 5 | M25: 5 | N25: 2014-19 Distribution Determination | O25: 51 Huntingwood Drive | Q25: HUNTINGWOOD | R25: NSW | S25: 2148 | T25: PO Box 811 | V25: SEVEN HILLS | W25: NSW | X25: 1730 | Y25: Jon Hocking | Z25: 02 9853 4386 / 0407 348 156 | AA25: Jon.Hocking@Endeavourenergy.com.au | AC25: NO | AD25: YES | AE25: YES | AF25: YES | AG25: NO | AI25: CBD | AJ25: Urban | AK25: Short rural | AL25: Long rural | AN25: Endeavour Energy
B26: Energex | C26: Energex | D26: 40078849055 | E26: Qld | F26: Electricity | G26: Distribution | H26: Revenue cap | I26: Financial | J26: June | K26: 5 | L26: 5 | M26: 5 | N26: 2015-20 Distribution Determination | O26: 26 Reddacliff Street | Q26: NEWSTEAD | R26: Qld | S26: 4006 | T26: 26 Reddacliff Street | V26: NEWSTEAD | W26: QLD | X26: 4006 | Y26: Nicola Roscoe | Z26: 07 3664 5891 | AA26: nicolaroscoe@energex.com.au | AC26: YES | AD26: YES | AE26: YES | AF26: NO | AG26: NO | AI26: CBD | AJ26: Urban | AK26: Short rural | AL26: Long rural | AN26: Energex
B27: Ergon Energy | C27: Ergon Energy | D27: 50087646062 | E27: Qld | F27: Electricity | G27: Distribution | H27: Revenue cap | I27: Financial | J27: June | K27: 5 | L27: 5 | M27: 5 | N27: 2015-20 Distribution Determination | O27: 22 Walker Street | Q27: TOWNSVILLE | R27: Qld | S27: 4810 | T27: Po Box 264 | V27: FORTITUDE VALLEY | W27: QLD | X27: 4006 | Y27: Jenny Doyle, Group Manager Regulatory Affairs | Z27: (07) 3851 6416 | AA27: jenny.doyle@ergon.com.au | AC27: NO | AD27: YES | AE27: YES | AF27: YES | AG27: NO | AI27: CBD | AJ27: Urban | AK27: Short rural | AL27: Long rural | AN27: Ergon Energy
B28: Essential Energy | C28: Essential Energy | D28: 37428185226 | E28: NSW | F28: Electricity | G28: Distribution | H28: Revenue cap | I28: Financial | J28: June | K28: 5 | L28: 5 | M28: 5 | N28: 2014-19 Distribution Determination | O28: 8 Buller Street | Q28: PORT MACQUARIE | R28: NSW | S28: 2444 | T28: PO Box 5730 | V28: PORT MACQUARIE | W28: NSW | X28: 2444 | Y28: Catherine Waddell | Z28: 02 6338 3553 | AA28: catherine.waddell@essentialenergy.com.au | AE28: YES | AF28: YES | AG28: NO | AI28: CBD | AJ28: Urban | AK28: Short rural | AL28: Long rural | AN28: Essential Energy
B29: Jemena Electricity | C29: Jemena Electricity | D29: 82064651083 | E29: Vic | F29: Electricity | G29: Distribution | H29: Revenue cap | I29: Calendar | J29: December | K29: 5 | L29: 5 | M29: 2 | N29: 2016-20 Distribution Determination | O29: Level 16 | P29: 567 Collins Street | Q29: MELBOURNE | R29: VIC | S29: 3000 | T29: PO Box 16182 | V29: MELBOURNE | W29: VIC | X29: 8001 | Y29: Robert McMillan | Z29: 03 9173 7000 | AA29: robert.mcmillan@jemena.com.au | AE29: YES | AF29: NO | AG29: NO | AI29: CBD | AJ29: Urban | AK29: Short rural | AL29: Long rural | AN29: Jemena Electricity
B30: JGN | C30: Jemena Gas Networks | E30: NSW | F30: Gas | G30: Distribution | H30: Weighted average price cap | I30: Financial | J30: June | K30: 5 | L30: 5 | AN30: JGN
B31: Multinet Gas | C31: Multinet Gas (DB No.1) Pty Ltd (ACN 086 026 986), Multinet Gas (DB No.2) Pty Ltd (ACN 086 230 122) | D31: 86026986 | E31: Vic | F31: Gas | G31: Distribution | H31: Weighted average price cap | I31: Calendar | J31: December | K31: 5 | L31: 5 | M31: x | AN31: Multinet Gas
B32: Murraylink | C32: Murraylink | D32: 79181207909 | E32: SA | F32: Electricity | G32: Transmission | H32: Revenue cap | I32: Financial | J32: June | K32: 5 | L32: 5 | M32: 5 | N32: transmission determination | AI32: CBD | AJ32: Urban | AK32: Short rural | AL32: Long rural | AN32: Murraylink
B33: Powercor Australia | C33: Powercor Australia | D33: 89064651109 | E33: Vic | F33: Electricity | G33: Distribution | H33: Revenue cap | I33: Calendar | J33: December | K33: 5 | L33: 5 | M33: 2 | N33: 2016-20 Distribution Determination | O33: 40 Market Street | Q33: MELBOURNE | R33: Vic | S33: 3000 | T33: Locked bag 14090 | V33: MELBOURNE | W33: VIC | X33: 8001 | Y33: Hannah Williams | Z33: 03 9683 4088 | AA33: hwilliams@powercor.com.au | AE33: YES | AF33: YES | AG33: NO | AI33: CBD | AJ33: Urban | AK33: Short rural | AL33: Long rural | AN33: Powercor Australia
B34: Powerlink | C34: Queensland Electricity Transmission Corporation Limited trading as Powerlink Queensland | D34: 82078849233 | E34: Qld | F34: Electricity | G34: Transmission | H34: Revenue cap | I34: Financial | J34: June | K34: 5 | L34: 5 | M34: 5 | N34: transmission determination | O34: 33 Harold St | Q34: VIRGINIA | R34: Qld | S34: 4014 | T34: PO Box 1193 | V34: VIRGINIA | W34: QLD | X34: 4014 | Y34: Jennifer Harris | Z34: 07 3860 2667 | AA34: jharris@powerlink.com.au | AI34: CBD | AJ34: Urban | AK34: Short rural | AL34: Long rural | AN34: Powerlink
B35: Roma to Brisbane Pipeline | C35: APT Petroleum Pipelines Limited t/a Roma to Brisbane Pipeline | D35: 009 737 393 | E35: Qld | F35: Gas | G35: Transmission | H35: Revenue cap | I35: Financial | J35: June | K35: 5 | L35: 5 | M35: x | N35: n/a | AI35: CBD | AJ35: Urban | AK35: Short rural | AL35: Long rural | AN35: Roma to Brisbane Pipeline
B36: SA Power Networks | C36: SA Power Networks | D36: 13332330749 | E36: SA | F36: Electricity | G36: Distribution | H36: Revenue cap | I36: Financial | J36: June | K36: 5 | L36: 5 | M36: 5 | N36: 2015-20 Distribution Determination | O36: 1 Anzac Highway | Q36: KESWICK | R36: SA | S36: 5035 | T36: GPO Box 77 | V36: ADELAIDE | W36: SA | X36: 5000 | Y36: Damien O'Connor | Z36: 08 8404 5066 | AA36: damien.oconnor@sapowernetworks.com.au | AE36: YES | AF36: YES | AG36: NO | AI36: CBD | AJ36: Urban | AK36: Short rural | AL36: Long rural | AN36: SA Power Networks
B37: TasNetworks (D) | C37: TasNetworks (D) | D37: 24167357299 | E37: Tas | F37: Electricity | G37: Distribution | H37: Revenue cap | I37: Financial | J37: June | K37: 5 | L37: 5 | M37: 5 | N37: distribution determination | O37: 21 Kirksway Place | Q37: HOBART | R37: Tas | S37: 7000 | T37: GPO Box 191 | V37: HOBART | W37: Tas | X37: 7000 | Y37: Leigh Mayne | Z37: 03 6270 3691 | AA37: rrp2012@auroraenergy.com.au | AE37: YES | AF37: YES | AG37: YES | AI37: Critical Infrastructure | AJ37: High density commercial | AK37: Urban | AL37: High density rural | AM37: Low density rural | AN37: TasNetworks (D)
B38: TasNetworks (T) | C38: TasNetworks (T) | D38: 24167357299 | E38: Tas | F38: Electricity | G38: Transmission | H38: Revenue cap | I38: Financial | J38: March | K38: 5 | L38: 5 | M38: 5 | N38: transmission determination | O38: 1-7 Maria Street | Q38: LENAH VALLEY | R38: Tas | S38: 7008 | T38: PO Box 606 | V38: MOONAH | W38: Tas | X38: 7009 | Y38: Heath Dillon | Z38: 03 6274 3664 | AA38: heath.dillon@transend.com.au | AI38: CBD | AJ38: Urban | AK38: Short rural | AL38: Long rural | AN38: TasNetworks (T)
B39: TransGrid | C39: TransGrid | D39: 19622755774 | E39: NSW | F39: Electricity | G39: Transmission | H39: Revenue cap | I39: Financial | J39: June | K39: 5 | L39: 4 | M39: 5 | N39: transmission determination | O39: 180 Thomas Street | Q39: HAYMARKET | R39: NSW | S39: 2000 | T39: PO Box A1000 | V39: SYDNEY SOUTH | W39: NSW | X39: 1235 | Y39: Andrew Kingsmill | Z39: 02 9284 3149 | AA39: andrew.kingsmill@transgrid.com.au | AI39: CBD | AJ39: Urban | AK39: Short rural | AL39: Long rural | AN39: TransGrid
B40: United Energy | C40: United Energy | D40: 70064651029 | E40: Vic | F40: Electricity | G40: Distribution | H40: Revenue cap | I40: Calendar | J40: December | K40: 5 | L40: 5 | M40: 2 | N40: 2016-20 Distribution Determination | O40: Level 3 | P40: 6 Nexus Court | Q40: MULGRAVE | R40: Vic | S40: 3149 | T40: PO Box 449 | V40: MOUNT WAVERLEY | W40: VIC | X40: 3170 | Y40: Mathew Abraham | Z40: 03 8846 9758 | AA40: mathew.abraham@ue.com.au | AE40: YES | AF40: NO | AG40: NO | AI40: CBD | AJ40: Urban | AK40: Short rural | AL40: Long rural | AN40: United Energy
B41: Western Power (D) | C41: Western Power (D) | D41: 18540492861 | E41: WA | F41: Electricity | G41: Distribution | H41: Revenue cap | I41: Financial | J41: June | K41: 12 | L41: 4 | M41: x | N41: distribution determination | O41: 363 Wellington Street | Q41: PERTH | R41: WA | S41: 6000 | T41: GPO Box L921 | V41: PERTH | W41: WA | X41: 6842 | Y41: Judy Hunter | Z41: 08 9326 6239 | AA41: judy.hunter@westernpower.com.au | AE41: YES | AF41: YES | AG41: NO | AH41: NO | AI41: CBD | AJ41: Urban | AK41: Short rural | AL41: Long rural | AN41: Western Power (D)
B42: Western Power (T) | C42: Western Power (T) | D42: 18540492861 | E42: WA | F42: Electricity | G42: Transmission | H42: Revenue cap | I42: Financial | J42: June | K42: 12 | L42: 4 | M42: x | N42: transmission determination | O42: 363 Wellington Street | Q42: PERTH | R42: WA | S42: 6000 | T42: GPO Box L921 | V42: PERTH | W42: WA | X42: 6842 | Y42: Judy Hunter | Z42: 08 9326 6239 | AA42: judy.hunter@westernpower.com.au | AE42: YES | AF42: YES | AG42: NO | AI42: CBD | AJ42: Urban | AK42: Short rural | AL42: Long rural | AN42: Western Power (T)
W45: For EB & Reset RINs only
B46: The Reg Year Ending (dms_RYE) must be set to the last year of the regulatory period. For forecast data is is usually (FRCP_y5) for actual it is a single year (CRY). For historical actual data the RYE will need to be set manually in the business details sheet by setting the dms_Multiyear_flag to 1 and putting the correct value in 'dms_Specified_FinalYear. See cells C67:C68 | G46: =IF(dms_RPT="financial",VALUE(LEFT(CRCP_y1,4)-1)&"-"&TEXT(VALUE(RIGHT(CRCP_y1,2)-1),"00"),VALUE(LEFT(CRCP_y1,4)-1)) -> 2012 | N46: Drop down selector box for CA & Reset RINs. | O46: For CA & Reset RINs only | W46: for DNSP only | AI46: Reason for interruption | AJ46: dms_Reason_Interruption_Detailed | AK46: dms_Reason_Interruption
B47: dms_Model_List | C47: DELETE NR 'CRY' IF NOT AN ANNUAL RIN (EB, CA , ARR) | E47: dms_RYE_Formula_Result | N47: dms_0203_ProjectType | O47: dms_020303_01_UOM | P47: dms_020501_01_UOM | Q47: dms_020501_02_UOM | R47: dms_020501_03_UOM | S47: dms_020501_04_UOM | T47: dms_020603_01_UOM | U47: dms_040102_01_UOM | V47: dms_040102_04_UOM | W47: dms_030601_01_UOM | X47: dms_030601_02_UOM | Y47: dms_030701_01_UOM | Z47: dms_030702_01_UOM | AA47: dms_030703_01_UOM | AI47: Animal | AJ47: Animal impact | AK47: Animal
B48: ARR | C48: ANNUAL REPORTING STATEMENT | E48: =LEFT(dms_SingleYear_FinalYear_Result,2)&RIGHT(dms_SingleYear_FinalYear_Result,2) ->  | F48: =LEFT(dms_SingleYear_FinalYear_Result,2)&RIGHT(dms_SingleYear_FinalYear_Result,2) | H48: Formula errors are OK | N48: New line on new route - single circuit | O48: Circuit line length in km | P48: 0's | Q48: 0's | R48: 0's | S48: 0's | T48: 0's | U48: 0's | V48: days | W48: minutes/customer | X48: minutes/customer | Y48: Customer / km | Z48: % | AA48: km | AJ48: Animal nesting/burrowing, etc and other | AK48: Asset failure
B49: CA | C49: CATEGORY ANALYSIS | E49: =LEFT(dms_SingleYear_FinalYear_Result,2)&RIGHT(dms_SingleYear_FinalYear_Result,2) ->  | F49: =LEFT(dms_SingleYear_FinalYear_Result,2)&RIGHT(dms_SingleYear_FinalYear_Result,2) | H49: Formula errors are OK | N49: New line on new route - dual circuit | O49: Circuit line length in km | P49: 0's | Q49: 0's | R49: 0's | S49: 0's | T49: 0's | U49: 0's | V49: 0's | W49: minutes/customer | X49: minutes/customer | Y49: MWh/customer | Z49: Number of spans | AJ49: Other | AK49: Other
B50: CPI | C50: CPI | N50: New line on new route - other | O50: Circuit line length in km | P50: MVA added | Q50: MVA added | R50: MVA added | S50: MVA added | T50: 0's | U50: 0's | V50: $0s | W50: interruptions/customer | X50: interruptions/customer | Y50: kVA / customer | Z50: Number of spans | AI50: Asset failure | AJ50: LV | AK50: Overloads
B51: EB | C51: ECONOMIC BENCHMARKING | E51: =LEFT(dms_SingleYear_FinalYear_Result,2)&RIGHT(dms_SingleYear_FinalYear_Result,2) ->  | F51: =LEFT(dms_SingleYear_FinalYear_Result,2)&RIGHT(dms_SingleYear_FinalYear_Result,2) | H51: Formula errors are OK | N51: Line rebuild over existing route - single circuit | O51: Circuit line length in km | P51: 0's | Q51: 0's | R51: 0's | S51: 0's | T51: 0's | U51: $0s | V51: 0's | W51: interruptions/customer | X51: interruptions/customer | Z51: Number of spans | AJ51: Distribution substation | AK51: Planned
B52: PTRM | C52: POST TAX REVENUE MODEL | E52: =LEFT(dms_MultiYear_FinalYear_Result,2)&RIGHT(dms_MultiYear_FinalYear_Result,2) -> 2022 | F52: =LEFT(dms_MultiYear_FinalYear_Result,2)&RIGHT(dms_MultiYear_FinalYear_Result,2) | N52: Line rebuild over existing route - dual circuit | O52: Number | P52: total spend $0s | Q52: total spend $0s | R52: total spend $0s | S52: total spend $0s | T52: (per cent) | Z52: Number of spans | AJ52: HV | AK52: Network business
B53: Reset | C53: REGULATORY REPORTING STATEMENT | E53: =LEFT(dms_MultiYear_FinalYear_Result,2)&RIGHT(dms_MultiYear_FinalYear_Result,2) -> 2022 | F53: =LEFT(dms_MultiYear_FinalYear_Result,2)&RIGHT(dms_MultiYear_FinalYear_Result,2) | H53: Formula errors are OK | N53: Reconductor - Single circuit | O53: Number | P53: net circuit km added | Q53: net circuit km added | R53: net circuit km added | S53: net circuit km added | Z53: Years | AJ53: Zone substation | AK53: Third party
B54: RFM | C54: ROLL FORWARD MODEL | E54: =LEFT(dms_CRCP_FinalYear_Result,2)&RIGHT(dms_CRCP_FinalYear_Result,2) -> 2017 | F54: =LEFT(dms_CRCP_FinalYear_Result,2)&RIGHT(dms_CRCP_FinalYear_Result,2) | N54: Reconductor - Dual circuit | O54: Number | P54: total spend $0s | Q54: total spend $0s | R54: total spend $0s | S54: total spend $0s | Z54: Years | AJ54: Subtransmission | AK54: Unknown
B55: WACC | C55: WEIGHTED AVERAGE COST OF CAPITAL | E55: =LEFT(dms_MultiYear_FinalYear_Result,2)&RIGHT(dms_MultiYear_FinalYear_Result,2) -> 2022 | F55: =LEFT(dms_MultiYear_FinalYear_Result,2)&RIGHT(dms_MultiYear_FinalYear_Result,2) | N55: Other | P55: net circuit km added | Q55: net circuit km added | R55: net circuit km added | S55: net circuit km added | Z55: Trees | AI55: Other | AJ55: insert description of 'other' | AK55: Vegetation
P56: total spend $0s | Q56: total spend $0s | R56: total spend $0s | S56: total spend $0s | Z56: Trees | AI56: Overloads | AJ56: - | AK56: Weather
P57: 0's | R57: $0s | Z57: Defects | AI57: Planned | AJ57: - | AK57: 2 - STPIS Exclusion (3.3)(a)
P58: 0's | Z58: Defects | AI58: Network business | AJ58: Network error | AK58: 3 - STPIS Exclusion (3.3)(a)
P59: 0's | Z59: Spans | AJ59: Switching and protection error | AK59: 4 - STPIS Exclusion (3.3)(a)
P60: $0s | Z60: km | AI60: Third party | AJ60: Fire | AK60: 5 - STPIS Exclusion (3.3)(a)
Z61: Spans | AJ61: Other | AK61: 6 - STPIS Exclusion (3.3)(a)
AJ62: Dig-in | AK62: 7 - STPIS Exclusion (3.3)(a)
AJ63: Unauthorised access
B64: For all files either AER or business needs to be able to specify the type of submission | C64: For PTRM & RFM templates we must provide a choice in case they change their form of control - otherwise it is drawn from the business specific lookup table above. | E64: These are indeces and lookup values for various dates. All step from the value placed in FRCP_y1 on the business and other details worksheet | W64: for TNSP only | AJ64: Vehicle impact
B65: dms_SourceList | C65: dms_FormControl_Choices | E65: dms_FRCPlength_Num_List | F65: dms_FinalYear_List | G65: dms_CRCPlength_Num_List | H65: dms_CFinalYear_List | I65: dms_FRCP_years | K65: dms_CRCP_years | M65: dms_CRCP_index | W65: dms_030601_01_UOM | Y65: dms_030701_01_UOM | Z65: dms_030702_01_UOM | AI65: Unknown | AJ65: Unknown
B66: After appeal | C66: Revenue cap | E66: 1 | F66: dms_FRCP_y1 | G66: 1 | H66: CRCP_y1 | I66: =FRCP_y1 -> 2018 | J66: dms_FRCP_y1 | K66: =IF(dms_RPT="financial",VALUE(LEFT(dms_FRCP_y1,4)-1)&"-"&TEXT(VALUE(MID(dms_FRCP_y1,3,2)),"00"),VALUE(LEFT(dms_FRCP_y1,4)-1)) -> 2017 | L66: dms_CRCP_yZ | M66: 1 | W66: % | Y66: Number of spans | Z66: km | AI66: Vegetation | AJ66: Blow-in/Fall-in - NSP responsibility
B67: Draft decision | C67: Revenue yield | E67: 2 | F67: dms_FRCP_y2 | G67: 2 | H67: CRCP_y2 | I67: =IF(dms_RPT="financial",VALUE(LEFT(dms_FRCP_y1,4)+1)&"-"&TEXT(VALUE(RIGHT(dms_FRCP_y1,2)+1),"00"),VALUE(LEFT(dms_FRCP_y1,4)+1)) -> 2019 | J67: dms_FRCP_y2 | K67: =IF(dms_RPT="financial",VALUE(LEFT(dms_CRCP_yZ,4)-1)&"-"&TEXT(VALUE(MID(dms_CRCP_yZ,3,2)),"00"),VALUE(LEFT(dms_CRCP_yZ,4)-1)) -> 2016 | L67: dms_CRCP_yY | M67: 2 | W67: number | Y67: Years | Z67: % | AJ67: Grow-in - NSP responsibility
B68: Final decision | C68: Weighted average price cap | E68: 3 | F68: dms_FRCP_y3 | G68: 3 | H68: CRCP_y3 | I68: =IF(dms_RPT="financial",VALUE(LEFT(dms_FRCP_y2,4)+1)&"-"&TEXT(VALUE(RIGHT(dms_FRCP_y2,2)+1),"00"),VALUE(LEFT(dms_FRCP_y2,4)+1)) -> 2020 | J68: dms_FRCP_y3 | K68: =IF(dms_RPT="financial",VALUE(LEFT(dms_CRCP_yY,4)-1)&"-"&TEXT(VALUE(MID(dms_CRCP_yY,3,2)),"00"),VALUE(LEFT(dms_CRCP_yY,4)-1)) -> 2015 | L68: dms_CRCP_yX | M68: 3 | W68: number | Y68: Trees | Z68: km | AJ68: Blow-in/Fall-in - Other responsible party
B69: PTRM update 1 | E69: 4 | F69: dms_FRCP_y4 | G69: 4 | H69: CRCP_y4 | I69: =IF(dms_RPT="financial",VALUE(LEFT(dms_FRCP_y3,4)+1)&"-"&TEXT(VALUE(RIGHT(dms_FRCP_y3,2)+1),"00"),VALUE(LEFT(dms_FRCP_y3,4)+1)) -> 2021 | J69: dms_FRCP_y4 | K69: =IF(dms_RPT="financial",VALUE(LEFT(dms_CRCP_yX,4)-1)&"-"&TEXT(VALUE(MID(dms_CRCP_yX,3,2)),"00"),VALUE(LEFT(dms_CRCP_yX,4)-1)) -> 2014 | L69: dms_CRCP_yW | M69: 4 | W69: % | Y69: Defects | Z69: number | AJ69: Grow-in - Other responsible party
B70: PTRM update 2 | E70: 5 | F70: dms_FRCP_y5 | G70: 5 | H70: CRCP_y5 | I70: =IF(dms_RPT="financial",VALUE(LEFT(dms_FRCP_y4,4)+1)&"-"&TEXT(VALUE(RIGHT(dms_FRCP_y4,2)+1),"00"),VALUE(LEFT(dms_FRCP_y4,4)+1)) -> 2022 | J70: dms_FRCP_y5 | K70: =IF(dms_RPT="financial",VALUE(LEFT(dms_CRCP_yW,4)-1)&"-"&TEXT(VALUE(MID(dms_CRCP_yW,3,2)),"00"),VALUE(LEFT(dms_CRCP_yW,4)-1)) -> 2013 | L70: dms_CRCP_yV | M70: 5 | W70: number | Y70: Number of spans | AI70: Weather
B71: PTRM update 3 | E71: 6 | F71: dms_FRCP_y6 | G71: 6 | H71: CRCP_y6 | I71: =IF(dms_RPT="financial",VALUE(LEFT(dms_FRCP_y5,4)+1)&"-"&TEXT(VALUE(RIGHT(dms_FRCP_y5,2)+1),"00"),VALUE(LEFT(dms_FRCP_y5,4)+1)) -> 2023 | J71: dms_FRCP_y6 | K71: =IF(dms_RPT="financial",VALUE(LEFT(dms_CRCP_yV,4)-1)&"-"&TEXT(VALUE(MID(dms_CRCP_yV,3,2)),"00"),VALUE(LEFT(dms_CRCP_yV,4)-1)) -> 2012 | L71: dms_CRCP_yU | M71: 6 | W71: number | Y71: km | AI71: 2 - STPIS Exclusion (3.3)(a)
B72: PTRM update 4 | E72: 7 | F72: dms_FRCP_y7 | G72: 7 | H72: CRCP_y7 | I72: =IF(dms_RPT="financial",VALUE(LEFT(dms_FRCP_y6,4)+1)&"-"&TEXT(VALUE(RIGHT(dms_FRCP_y6,2)+1),"00"),VALUE(LEFT(dms_FRCP_y6,4)+1)) -> 2024 | J72: dms_FRCP_y7 | K72: =IF(dms_RPT="financial",VALUE(LEFT(dms_CRCP_yU,4)-1)&"-"&TEXT(VALUE(MID(dms_CRCP_yU,3,2)),"00"),VALUE(LEFT(dms_CRCP_yU,4)-1)) -> 2011 | L72: dms_CRCP_yT | M72: 7 | W72: % | Y72: km | AI72: 3 - STPIS Exclusion (3.3)(a)
B73: PTRM update 5 | E73: 8 | F73: dms_FRCP_y8 | G73: 8 | H73: CRCP_y8 | I73: =IF(dms_RPT="financial",VALUE(LEFT(dms_FRCP_y7,4)+1)&"-"&TEXT(VALUE(RIGHT(dms_FRCP_y7,2)+1),"00"),VALUE(LEFT(dms_FRCP_y7,4)+1)) -> 2025 | J73: dms_FRCP_y8 | K73: =IF(dms_RPT="financial",VALUE(LEFT(dms_CRCP_yT,4)-1)&"-"&TEXT(VALUE(MID(dms_CRCP_yT,3,2)),"00"),VALUE(LEFT(dms_CRCP_yT,4)-1)) -> 2010 | L73: dms_CRCP_yS | M73: 8 | W73: number | Y73: Number of spans | AI73: 4 - STPIS Exclusion (3.3)(a)
B74: PTRM update 6 | E74: 9 | F74: dms_FRCP_y9 | G74: 9 | H74: CRCP_y9 | I74: =IF(dms_RPT="financial",VALUE(LEFT(dms_FRCP_y8,4)+1)&"-"&TEXT(VALUE(RIGHT(dms_FRCP_y8,2)+1),"00"),VALUE(LEFT(dms_FRCP_y8,4)+1)) -> 2026 | J74: dms_FRCP_y9 | K74: =IF(dms_RPT="financial",VALUE(LEFT(dms_CRCP_yS,4)-1)&"-"&TEXT(VALUE(MID(dms_CRCP_yS,3,2)),"00"),VALUE(LEFT(dms_CRCP_yS,4)-1)) -> 2009 | L74: dms_CRCP_yR | M74: 9 | W74: number | AI74: 5 - STPIS Exclusion (3.3)(a)
B75: PTRM update 7 | E75: 10 | F75: dms_FRCP_y10 | G75: 10 | H75: CRCP_y10 | I75: =IF(dms_RPT="financial",VALUE(LEFT(dms_FRCP_y9,4)+1)&"-"&TEXT(VALUE(RIGHT(dms_FRCP_y9,2)+1),"00"),VALUE(LEFT(dms_FRCP_y9,4)+1)) -> 2027 | J75: dms_FRCP_y10 | K75: =IF(dms_RPT="financial",VALUE(LEFT(dms_CRCP_yR,4)-1)&"-"&TEXT(VALUE(MID(dms_CRCP_yR,3,2)),"00"),VALUE(LEFT(dms_CRCP_yR,4)-1)) -> 2008 | L75: dms_CRCP_yQ | M75: 10 | W75: % | AI75: 6 - STPIS Exclusion (3.3)(a)
B76: Regulatory proposal | E76: 11 | F76: dms_FRCP_y11 | G76: 11 | H76: CRCP_y11 | I76: =IF(dms_RPT="financial",VALUE(LEFT(dms_FRCP_y10,4)+1)&"-"&TEXT(VALUE(RIGHT(dms_FRCP_y10,2)+1),"00"),VALUE(LEFT(dms_FRCP_y10,4)+1)) -> 2028 | J76: dms_FRCP_y11 | K76: =IF(dms_RPT="financial",VALUE(LEFT(dms_CRCP_yQ,4)-1)&"-"&TEXT(VALUE(MID(dms_CRCP_yQ,3,2)),"00"),VALUE(LEFT(dms_CRCP_yQ,4)-1)) -> 2007 | L76: dms_CRCP_yP | M76: 11 | W76: number | AI76: 7 - STPIS Exclusion (3.3)(a)
B77: Reporting | E77: 12 | F77: dms_FRCP_y12 | G77: 12 | H77: CRCP_y12 | I77: =IF(dms_RPT="financial",VALUE(LEFT(dms_FRCP_y11,4)+1)&"-"&TEXT(VALUE(RIGHT(dms_FRCP_y11,2)+1),"00"),VALUE(LEFT(dms_FRCP_y11,4)+1)) -> 2029 | J77: dms_FRCP_y12 | K77: =IF(dms_RPT="financial",VALUE(LEFT(dms_CRCP_yP,4)-1)&"-"&TEXT(VALUE(MID(dms_CRCP_yP,3,2)),"00"),VALUE(LEFT(dms_CRCP_yP,4)-1)) -> 2006 | L77: dms_CRCP_yO | M77: 12 | W77: %
B78: Revised regulatory proposal | E78: 13 | F78: dms_FRCP_y13 | G78: 13 | H78: CRCP_y13 | I78: =IF(dms_RPT="financial",VALUE(LEFT(dms_FRCP_y12,4)+1)&"-"&TEXT(VALUE(RIGHT(dms_FRCP_y12,2)+1),"00"),VALUE(LEFT(dms_FRCP_y12,4)+1)) -> 2030 | J78: dms_FRCP_y13 | K78: =IF(dms_RPT="financial",VALUE(LEFT(dms_CRCP_yO,4)-1)&"-"&TEXT(VALUE(MID(dms_CRCP_yO,3,2)),"00"),VALUE(LEFT(dms_CRCP_yO,4)-1)) -> 2005 | L78: dms_CRCP_yN | M78: 13 | W78: number
E79: 14 | F79: dms_FRCP_y14 | G79: 14 | H79: CRCP_y14 | I79: =IF(dms_RPT="financial",VALUE(LEFT(dms_FRCP_y13,4)+1)&"-"&TEXT(VALUE(RIGHT(dms_FRCP_y13,2)+1),"00"),VALUE(LEFT(dms_FRCP_y13,4)+1)) -> 2031 | J79: dms_FRCP_y14 | K79: =IF(dms_RPT="financial",VALUE(LEFT(dms_CRCP_yN,4)-1)&"-"&TEXT(VALUE(MID(dms_CRCP_yN,3,2)),"00"),VALUE(LEFT(dms_CRCP_yN,4)-1)) -> 2004 | L79: dms_CRCP_yM | M79: 14 | W79: %
E80: 15 | F80: dms_FRCP_y15 | G80: 15 | H80: CRCP_y15 | I80: =IF(dms_RPT="financial",VALUE(LEFT(dms_FRCP_y14,4)+1)&"-"&TEXT(VALUE(RIGHT(dms_FRCP_y14,2)+1),"00"),VALUE(LEFT(dms_FRCP_y14,4)+1)) -> 2032 | J80: dms_FRCP_y15 | K80: =IF(dms_RPT="financial",VALUE(LEFT(dms_CRCP_yM,4)-1)&"-"&TEXT(VALUE(MID(dms_CRCP_yM,3,2)),"00"),VALUE(LEFT(dms_CRCP_yM,4)-1)) -> 2003 | L80: dms_CRCP_yL | M80: 15 | W80: number
E82: These are drop down lists for businesses to select the correct FRCP_y1 on the business and other details worksheet. This also populates the column headings in the worksheets
B83: dms_DataQuality_List | E83: dms_RCP_fyear_list | F83: dms_CRY_ListF | G83: dms_CRY_ListC | H83: dms_RCP_cyear_list | I83: dms_FRCP_fyear_list | J83: dms_FRCP_ListF | K83: dms_FRCP_ListC | L83: dms_FRCP_cyear_list
B84: Actual | E84: dms_fy1 | F84: 2006-07 | G84: 2007 | H84: dms_cy1 | I84: dms_frcp_fy1 | J84: 2016-17 | K84: 2017 | L84: dms_crcp_cy1
B85: Estimate | E85: dms_fy2 | F85: 2007-08 | G85: 2008 | H85: dms_cy2 | I85: dms_frcp_fy2 | J85: 2017-18 | K85: 2018 | L85: dms_crcp_cy2
B86: Consolidated | E86: dms_fy3 | F86: 2008-09 | G86: 2009 | H86: dms_cy3 | I86: dms_frcp_fy3 | J86: 2018-19 | K86: 2019 | L86: dms_crcp_cy3
B87: Recast | E87: dms_fy4 | F87: 2009-10 | G87: 2010 | H87: dms_cy4 | I87: dms_frcp_fy4 | J87: 2019-20 | K87: 2020 | L87: dms_crcp_cy4
B88: Public | E88: dms_fy5 | F88: 2010-11 | G88: 2011 | H88: dms_cy5 | I88: dms_frcp_fy5 | J88: 2020-21 | K88: 2021 | L88: dms_crcp_cy5
E89: dms_fy6 | F89: 2011-12 | G89: 2012 | H89: dms_cy6 | I89: dms_frcp_fy6 | J89: 2021-22 | K89: 2022 | L89: dms_crcp_cy6
E90: dms_fy7 | F90: 2012-13 | G90: 2013 | H90: dms_cy7 | I90: dms_frcp_fy7 | J90: 2022-23 | K90: 2023 | L90: dms_crcp_cy7
E91: dms_fy8 | F91: 2013-14 | G91: 2014 | H91: dms_cy8 | I91: dms_frcp_fy8 | J91: 2023-24 | K91: 2024 | L91: dms_crcp_cy8
E92: dms_fy9 | F92: 2014-15 | G92: 2015 | H92: dms_cy9 | I92: dms_frcp_fy9 | J92: 2024-25 | K92: 2025 | L92: dms_crcp_cy9
E93: dms_fy10 | F93: 2015-16 | G93: 2016 | H93: dms_cy10 | I93: dms_frcp_fy10 | J93: 2025-26 | K93: 2026 | L93: dms_crcp_cy10
E94: dms_fy11 | F94: 2016-17 | G94: 2017 | H94: dms_cy11 | I94: dms_frcp_fy11 | J94: 2026-27 | K94: 2027 | L94: dms_crcp_cy11
E95: dms_fy12 | F95: 2017-18 | G95: 2018 | H95: dms_cy12 | I95: dms_frcp_fy12 | J95: 2027-28 | K95: 2028 | L95: dms_crcp_cy12
E96: dms_fy13 | F96: 2018-19 | G96: 2019 | H96: dms_cy13 | I96: dms_frcp_fy13 | J96: 2028-29 | K96: 2029 | L96: dms_crcp_cy13
E97: dms_fy14 | F97: 2019-20 | G97: 2020 | H97: dms_cy14 | I97: dms_frcp_fy14 | J97: 2029-30 | K97: 2030 | L97: dms_crcp_cy14
E98: dms_fy15 | F98: 2020-21 | G98: 2021 | H98: dms_cy15 | I98: dms_frcp_fy15 | J98: 2030-31 | K98: 2031 | L98: dms_crcp_cy15

Sheet Instructions
B2: =CONCATENATE(dms_Segment," Network Service Provider") -> Transmission Network Service Provider
B3: Regulatory Reporting RIN Template
C4: =CONCATENATE("This template is to be used by ",dms_TradingName," to fulfil its reporting obligations to the AER.") -> This template is to be used by APA VTS to fulfil its reporting obligations to the AER.
C5: INSTRUCTIONS
C6: Complete the Business & other details worksheet before entering data or values in any other worksheets. The Business & other details worksheet is linked to other worksheets within the workbook and automatically generates certain column headings and conditional formatting.
C8: Identifying CONFIDENTIAL INFORMATION: Please use the macro at the top of each worksheet to identify confidential information.
C9: -Do this by selecting the cell or cells that contain confidential information and then run the Mark selected cells as CONFIDENTIAL macro. This will format the cells a specific colour that is identified by the AER's database which in turn marks that information as confidential. -To reverse this, select the cell or cells and run the Return cells to NON-CONFIDENTIAL macro
C11: UNITS OF MEASURE All amounts are to be unrounded and reported on a one for one basis: that is 1000 is to be entered as '1000'. The units of measure including the dollar terms are as specified in the relevant column headings.
C13: COLOUR CODING OF INPUT / NON-INPUT CELLS:
D14: Yellow = Input cell (mandatory)
D15: Darker yellow = input cell (mandatory)
D16: Orange = input cell (if data available)
D17: Grey = Not applicable/No inputs required
D18: Leave coloured cells blank if no information exists. PLEASE DO NOT ENTER TEXT into cells that are to contain numeric data.
C21: WORKSHEET NAVIGATION Some tables in the worksheets have been "grouped" to allow for easy navigation. To ungroup or group data use the outline symbols in the left margin of excel (for Row groupings) or above the columns (for column groupings).
C23: RETURNING COMPLETED RESPONSES Please return two (2) files to the AER: 1. A confidential version which must contain a complete set of all responses with confidential information marked using the Mark selected cells CONFIDENTIAL macro and which has been completed using the locked template file provided by the AER. 2. A public version with confidential information either removed completely or aggregated in some form together with writtten consent to disclose the public version of the response. Use the drop down box on the Business and other details worksheet to identify the file as either confidential ('consolidated') or public.
C25: SUBMITTING AMENDED DATA TO THE AER If an NSP wishes to correct data previously submitted to the AER it should resubmit that data using the original completed submission as the starting point. Please make any necessary changes to the data. Data that is not being amended should be left unchanged. NSPs must identify the reason for the amendments in the Amendment Reason box on the Business and other details worksheet. NSPs may provide further details regarding any amendments in the Amendments worksheet. Please resubmit two (2) files - a confidential version and a public version of the amended submission to the AER.

Sheet Contents
A1: .
C4: Gas Transmission Regulatory Information Notice
C5: =dms_TradingName -> APA VTS
C7: for access arrangement period
C8: =IF(SUM(dms_SingleYear_Model)>0,CRY,CONCATENATE(FRCP_y1," to ",dms_MultiYear_FinalYear_Result)) -> 2018 to 2022
C9: Table of Contents

Sheet Business & other details
B1: =IF(dms_DataQuality="backcast",INDEX(dms_Worksheet_List,MATCH(dms_Model,dms_Model_List))&" BACKCAST",INDEX(dms_Worksheet_List,MATCH(dms_Model,dms_Model_List))) -> REGULATORY REPORTING STATEMENT
B2: =INDEX(dms_TradingNameFull_List,MATCH(dms_TradingName,dms_TradingName_List)) -> APA VTS Australia (Operations) Pty Ltd
B3: =IF(SUM(dms_SingleYear_Model)>0,CRY,CONCATENATE(FRCP_y1," to ",dms_MultiYear_FinalYear_Result)) -> 2018 to 2022
B4: BUSINESS & OTHER DETAILS
B7: Instructions
B8: Complete the following business details regulatory template before entering data or values in any other regulatory template. This regulatory template is linked to other cells within the spreadsheet and automatically generates column headings and conditional formatting to distinguish business specific input and non-input cells.
B10: SUBMISSION PARTICULARS INPUT SHEETS
B12: ENTITY DETAILS
B14: Short name | C14: APA VTS | F14: Select business name from drop down list first
B15: ACN / ABN | C15: ACN 083 009 278
B18: Business address | C18: Address 1 | E18: =INDEX(dms_Addr1_List,MATCH(dms_TradingName,dms_TradingName_List)) -> Level 19, HSBC Building
D19: Address 2 | E19: =IF(ISBLANK(INDEX(dms_Addr2_List,MATCH(dms_TradingName,dms_TradingName_List))),"",INDEX(dms_Addr2_List,MATCH(dms_TradingName,dms_TradingName_List))) -> 580 George Street
C20: Suburb | E20: =INDEX(dms_Suburb_List,MATCH(dms_TradingName,dms_TradingName_List)) -> SYDNEY
D21: State | E21: =INDEX(dms_State_List,MATCH(dms_TradingName,dms_TradingName_List)) -> NSW | F21: p/code | G21: =INDEX(dms_PostCode_List,MATCH(dms_TradingName,dms_TradingName_List)) -> 2000
B23: Postal address | C23: Address 1 | E23: =INDEX(dms_PAddr1_List,MATCH(dms_TradingName,dms_TradingName_List)) -> PO Box R41
D24: Address 2 | E24: =IF(ISBLANK(INDEX(dms_PAddr2_List,MATCH(dms_TradingName,dms_TradingName_List))),"",INDEX(dms_PAddr2_List,MATCH(dms_TradingName,dms_TradingName_List))) -> 
C25: Suburb | E25: =INDEX(dms_PSuburb_List,MATCH(dms_TradingName,dms_TradingName_List)) -> ROYAL EXCHANGE
D26: State | E26: =INDEX(dms_PState_List,MATCH(dms_TradingName,dms_TradingName_List)) -> NSW | F26: p/code | G26: =INDEX(dms_PPostCode_List,MATCH(dms_TradingName,dms_TradingName_List)) -> 1225
B29: Contact name/s | C29: Alexandra Curran | F29: Mark Allen
B30: Contact phone/s | C30: (02) 9275 0020 | F30: (02) 9275 0010
B31: Contact email address/s | C31: alexandra.curran@apa.com.au | F31: mark.allen@apa.com.au
B33: REGULATORY CONTROL PERIODS
B35: Forthcoming regulatory control period | C35: 2018 | D35: =dms_FRCP_y2 -> 2019 | E35: =dms_FRCP_y3 -> 2020 | F35: =dms_FRCP_y4 -> 2021 | G35: =dms_FRCP_y5 -> 2022 | H35: =dms_FRCP_y6 -> 2023 | I35: =dms_FRCP_y7 -> 2024 | J35: =dms_FRCP_y8 -> 2025 | K35: =dms_FRCP_y9 -> 2026 | L35: =dms_FRCP_y10 -> 2027
C37: 1 July to 31 December
B38: Current regulatory control period | C38: =dms_CRCP_FirstYear_Result -> 2013 | D38: =IF(dms_RPT="financial",VALUE(LEFT(CRCP_y1,4)+1)&"-"&TEXT(MID(CRCP_y1,3,2)+2,"00"),VALUE(LEFT(CRCP_y1,4)+1)) -> 2014 | E38: =IF(dms_RPT="financial",VALUE(LEFT(CRCP_y2,4)+1)&"-"&TEXT(VALUE(MID(CRCP_y2,3,2)+2),"00"),VALUE(LEFT(CRCP_y2,4)+1)) -> 2015 | F38: =IF(dms_RPT="financial",VALUE(LEFT(CRCP_y3,4)+1)&"-"&TEXT(VALUE(MID(CRCP_y3,3,2)+2),"00"),VALUE(LEFT(CRCP_y3,4)+1)) -> 2016 | G38: =IF(dms_RPT="financial",VALUE(LEFT(CRCP_y4,4)+1)&"-"&TEXT(VALUE(MID(CRCP_y4,3,2)+2),"00"),VALUE(LEFT(CRCP_y4,4)+1)) -> 2017 | H38: =IF(dms_RPT="financial",VALUE(LEFT(CRCP_y5,4)+1)&"-"&TEXT(VALUE(MID(CRCP_y5,3,2)+2),"00"),VALUE(LEFT(CRCP_y5,4)+1)) -> 2018 | I38: =IF(dms_RPT="financial",VALUE(LEFT(CRCP_y6,4)+1)&"-"&TEXT(VALUE(MID(CRCP_y6,3,2)+2),"00"),VALUE(LEFT(CRCP_y6,4)+1)) -> 2019 | J38: =IF(dms_RPT="financial",VALUE(LEFT(CRCP_y7,4)+1)&"-"&TEXT(VALUE(MID(CRCP_y7,3,2)+2),"00"),VALUE(LEFT(CRCP_y7,4)+1)) -> 2020 | K38: =IF(dms_RPT="financial",VALUE(LEFT(CRCP_y8,4)+1)&"-"&TEXT(VALUE(MID(CRCP_y8,3,2)+2),"00"),VALUE(LEFT(CRCP_y8,4)+1)) -> 2021 | L38: =IF(dms_RPT="financial",VALUE(LEFT(CRCP_y9,4)+1)&"-"&TEXT(VALUE(MID(CRCP_y9,3,2)+2),"00"),VALUE(LEFT(CRCP_y9,4)+1)) -> 2022
H40: 1 January to 30 June
B41: Previous regulatory control period | C41: =IF(dms_RPT="financial",VALUE(LEFT(PRCP_y2,4)-1)&"-"&TEXT(VALUE(MID(PRCP_y2,3,2)),"00"),VALUE(LEFT(PRCP_y2,4)-1)) -> 2008 | D41: =IF(dms_RPT="financial",VALUE(LEFT(PRCP_y3,4)-1)&"-"&TEXT(VALUE(MID(PRCP_y3,3,2)),"00"),VALUE(LEFT(PRCP_y3,4)-1)) -> 2009 | E41: =IF(dms_RPT="financial",VALUE(LEFT(PRCP_y4,4)-1)&"-"&TEXT(VALUE(MID(PRCP_y4,3,2)),"00"),VALUE(LEFT(PRCP_y4,4)-1)) -> 2010 | F41: =IF(dms_RPT="financial",VALUE(LEFT(PRCP_y5,4)-1)&"-"&TEXT(VALUE(RIGHT(PRCP_y5,2)-1),"00"),VALUE(LEFT(PRCP_y5,4)-1)) -> 2011 | G41: =IF(dms_RPT="financial",VALUE(LEFT(CRCP_y1,4)-1)&"-"&TEXT(VALUE(RIGHT(CRCP_y1,2)-1),"00"),VALUE(LEFT(CRCP_y1,4)-1)) -> 2012 | H41: 2013
B44: Current regulatory year | C44: 2016-17 | D44: CRY
C47: DELETE NR 'CRY' IF NOT AN ANNUAL RIN (EB, CA , ARR)
C48: APPLY NR 'CRY' IF AN ANNUAL RIN (EB, CA , ARR) - including multi year annual RINs eg. Recast CA. EB
B50: Source | C50: Regulatory proposal | E50: Please select the correct submission type from the dropdown list.
B51: Data quality (actual, estimate, public, consolidated) | C51: Consolidated
B52: Amended RIN submission - amendment reason
B53: Submission Date | C53: 2017-01-03 | D53: dms_SubmissionDate | E53: Please enter date this file submitted to AER (dd/mm/yyyy)
B54: EBSS - First application of scheme in forthcoming period? | C54: No
B55: Sector | C55: =INDEX(dms_Sector_List,MATCH(dms_TradingName,dms_TradingName_List)) -> Gas | D55: dms_Sector | E55: =INDEX(dms_Sector_List,MATCH(dms_TradingName,dms_TradingName_List))
B56: Segment | C56: =INDEX(dms_Segment_List,MATCH(dms_TradingName,dms_TradingName_List)) -> Transmission | D56: dms_Segment | E56: =INDEX(dms_Segment_List,MATCH(dms_TradingName,dms_TradingName_List))
B57: Regulatory Year Ending | C57: =IF(dms_MultiYear_Flag=1,LEFT(dms_Specified_FinalYear,2)&RIGHT(dms_Specified_FinalYear,2),INDEX(dms_RYE_Formula_Result,MATCH(dms_Model,dms_Model_List))) -> 2022 | D57: dms_RYE | E57: =IF(dms_MultiYear_Flag=1,LEFT(dms_Specified_FinalYear,2)&RIGHT(dms_Specified_FinalYear,2),INDEX(dms_RYE_Formula_Result,MATCH(dms_Model,dms_Model_List)))
B58: Reporting Period Type | C58: =INDEX(dms_RPT_List,MATCH(dms_TradingName,dms_TradingName_List)) -> Calendar | D58: dms_RPT | E58: =INDEX(dms_RPT_List,MATCH(dms_TradingName,dms_TradingName_List))
B59: Model or RIN Type | C59: Reset | D59: dms_Model | E59: Drop down selection
B60: Security Classification | C60: Public | D60: dms_Classification | E60: Always Public
B61: Template - version no. | C61: 5 | D61: dms_TemplateNumber
B62: Dollar $ real month | C62: =INDEX(dms_RPTMonth_List,MATCH(dms_TradingName,dms_TradingName_List)) -> December | D62: dms_RPTMonth | E62: =INDEX(dms_RPTMonth_List,MATCH(dms_TradingName,dms_TradingName_List))
B63: Dollar $ real (the last month before the FRCP_y1) | C63: =CONCATENATE(dms_RPTMonth)&" "&VALUE((LEFT(dms_CRCP_FinalYear_Result,2)&RIGHT(dms_CRCP_FinalYear_Result,2))) -> December 2017 | D63: dms_DollarReal | E63: =IF(SUM(dms_SingleYear_Model)>0,CONCATENATE(dms_RPTMonth)&" "&VALUE((LEFT(CRY,2))&RIGHT(CRY,2)),CONCATENATE(dms_RPTMonth)&" "&VALUE((LEFT(dms_CRCP_FinalYear_Result,2)&RIGHT(dms_CRCP_FinalYear_Result,2))))
B64: Form of control | C64: =INDEX(dms_FormControl_List,MATCH(dms_TradingName,dms_TradingName_List)) -> Weighted average price cap | D64: dms_FormControl | E64: =INDEX(dms_FormControl_List,MATCH(dms_TradingName,dms_TradingName_List))
B65: RIN response - version no. | C65: 1 | D65: dms_RINversion
B66: Jurisdiction | C66: =INDEX(dms_JurisdictionList,MATCH(dms_TradingName,dms_TradingName_List)) -> Vic | D66: dms_Jurisdiction | E66: =INDEX(dms_JurisdictionList,MATCH(dms_TradingName,dms_TradingName_List))
B67: Backcast Multiyear EB, CA or ARR? | C67: 0 | D67: dms_MultiYear_Flag | E67: 1=y, 0-n
C68: 2013 | D68: dms_Specified_FinalYear | E68: The result here is returned to dms_CRCP_FinalYear_Result if dms_MultiYear_Flag is set to 1
B69: Single Year Model T/F | C69: =IF(dms_Model="EB",1,0) -> 0 | D69: dms_EB
C70: =IF(dms_Model="CA",1,0) -> 0 | D70: dms_CA | E70: =dms_SingleYear_Model
C71: =IF(dms_Model="ARR",1,0) -> 0 | D71: dms_ARR
B72: Single Year Final Year Reference | C72: CRY | D72: dms_SingleYear_FinalYear_Ref | E72: This is the reference for EB, CA & ARR RINs
B73: Single Year Final Year Result | C73: =INDIRECT(dms_SingleYear_FinalYear_Ref) ->  | D73: dms_SingleYear_FinalYear_Result | E73: =INDIRECT(dms_SingleYear_FinalYear_Ref) | I73: Formula errors OK
B74: FRCP length in years | C74: =INDEX(dms_FRCPlength_List,MATCH(dms_TradingName,dms_TradingName_List)) -> 5 | D74: dms_FRCPlength_Num | E74: =INDEX(dms_FRCPlength_List,MATCH(dms_TradingName,dms_TradingName_List))
B75: Multi Year Final Year Reference | C75: =INDEX(dms_FinalYear_List,MATCH(dms_FRCPlength_Num,dms_FRCPlength_Num_List)) -> dms_FRCP_y5 | D75: dms_MultiYear_FinalYear_Ref | E75: =INDEX(dms_FinalYear_List,MATCH(dms_FRCPlength_Num,dms_FRCPlength_Num_List))
B76: Multi Year Final Year Result | C76: =IF(dms_MultiYear_Flag=0,INDIRECT(dms_MultiYear_FinalYear_Ref),dms_Specified_FinalYear) -> 2022 | D76: dms_MultiYear_FinalYear_Result | E76: =IF(dms_MultiYear_Flag=0,INDIRECT(dms_MultiYear_FinalYear_Ref),dms_Specified_FinalYear) | I76: Formula errors OK
B77: CRCP length in years | C77: =INDEX(dms_CRCPlength_List,MATCH(dms_TradingName,dms_TradingName_List)) -> 5 | D77: dms_CRCPlength_Num | E77: =INDEX(dms_CRCPlength_List,MATCH(dms_TradingName,dms_TradingName_List))
B78: CRCP Final Year Reference | C78: =INDEX(dms_CFinalYear_List,MATCH(dms_CRCPlength_Num,dms_CRCPlength_Num_List)) -> CRCP_y5 | D78: dms_CRCP_FinalYear_Ref | E78: =INDEX(dms_CFinalYear_List,MATCH(dms_CRCPlength_Num,dms_CRCPlength_Num_List))
B79: CRCP First Year Result | C79: =INDEX(dms_CRCP_years,MATCH(dms_CRCPlength_Num,dms_CRCP_index)) -> 2013 | D79: dms_CRCP_FirstYear_Result | E79: =INDEX(dms_CRCP_years,MATCH(dms_CRCPlength_Num,dms_CRCP_index))
B80: CRCP Final Year Result | C80: =IF(dms_MultiYear_Flag=0,(IF(SUM(dms_SingleYear_Model)>0,CRY,dms_CRCP_yZ)),dms_Specified_FinalYear) -> 2017 | D80: dms_CRCP_FinalYear_Result | E80: =IF(dms_MultiYear_Flag=0,(IF(SUM(dms_SingleYear_Model)>0,CRY,dms_CRCP_yZ)),dms_Specified_FinalYear)
B81: Table 6.6.3 - Public lighting repair - no. business days | C81: =INDEX(dms_663_List,MATCH(dms_TradingName,dms_TradingName_List)) -> x | D81: dms_663
B82: Distribution Determination Reference | C82: =INDEX(dms_DeterminationRef_List,MATCH(dms_TradingName,dms_TradingName_List)) -> 0
B83: Backcast templates only - unit of measure | C83: $0s | D83: dms_Backcast_UOM | E83: If the cover sheet is for Backcast data ensure to apply dms_Backcast_UOM named range to this field. Otherwise, do not apply this named range.
B84: EB/CA Unit of Measure for Monetary Values | C84: $0s | D84: dms_dollar_nom_UOM | E84: If the cover sheet is attached to an EB files make sure this field is set
B86: discard this record? | C86: NO | D86: dms_DISCARD | E86: If record is to be discarded from DB set this flag to YES
B88: USES NAMED RANGES FLAG | C88: yes | D88: dms_Defined_Names_Used

Sheet 1. Inflation
B1: REGULATORY REPORTING STATEMENT
B2: =INDEX(dms_TradingNameFull_List,MATCH(dms_TradingName,dms_TradingName_List)) -> APA VTS Australia (Operations) Pty Ltd
B3: =IF(SUM(dms_SingleYear_Model)>0,CRY,CONCATENATE(FRCP_y1," to ",dms_MultiYear_FinalYear_Result)) -> 2018 to 2022
B4: 3. INFLATION OR EXTRAPOLATION RATES
B6: Instructions
B7: For each rate used replace the temporary name with the correct name and enter the required details into the yellow cells.
B9: 3.1 - INFLATION OR EXTRAPOLATION RATES
C10: Actual % | K10: Forecast %
C11: 2008 | D11: 2009 | E11: 2010 | F11: 2011 | G11: 2012 | H11: =CRCP_y1 -> 2013 | I11: =CRCP_y2 -> 2014 | J11: =CRCP_y3 -> 2015 | K11: =CRCP_y4 -> 2016 | L11: =CRCP_y5 -> 2017 | M11: =FRCP_y1 -> 2018 | N11: =FRCP_y2 -> 2019 | O11: =FRCP_y3 -> 2020 | P11: =FRCP_y4 -> 2021 | Q11: =FRCP_y5 -> 2022 | R11: =FRCP_y6 -> 2023 | S11: =FRCP_y7 -> 2024 | T11: =FRCP_y8 -> 2025 | U11: =FRCP_y9 -> 2026 | V11: =FRCP_y10 -> 2027
B12: ABS All groups CPI (Australia) | C12: 0.01976744186 | D12: 0.04446978335 | E12: 0.02074235808 | F12: 0.02459893048 | G12: 0.03549060543 | H12: 0.01209677419 | I12: 0.02390438247 | J12: 0.03015564202 | K12: 0.01510859301 | L12: 0.01023255814 | M12: 0.02 | N12: 0.02 | O12: 0.02 | P12: 0.02 | Q12: 0.02

Sheet 3.1 Opex
B1: REGULATORY REPORTING STATEMENT
B2: =INDEX(dms_TradingNameFull_List,MATCH(dms_TradingName,dms_TradingName_List)) -> APA VTS Australia (Operations) Pty Ltd
B3: =IF(SUM(dms_SingleYear_Model)>0,CRY,CONCATENATE(FRCP_y1," to ",dms_MultiYear_FinalYear_Result)) -> 2018 to 2022
B4: 3.1 OPERATING EXPENDITURE
B6: Instructions:
B7: Total opex reported in table 3.2.1 must reconcile with total opex reported in table 3.2.4. Total category specific forecasts in table 3.2.2 must reconcile with the total category specific forecasts reported in table 3.2.4. Total step changes reported in table 3.2.3 must reconcile with the total step changes reported in table 3.2.4. All totals must reconcile with the proposed opex model.
B10: 3.1.1 - OPERATING EXPENDITURE
C11: EXPENDITURE Actual ($0's) | F11: =CONCATENATE("EXPENDITURE Forecast ($0's real, ",dms_DollarReal,")") -> EXPENDITURE Forecast ($0's real, December 2017)
C12: 1 July to 31 December 2013 | D12: =CRCP_y2 -> 2014 | E12: =CRCP_y3 -> 2015 | F12: =CRCP_y4 -> 2016 | G12: =CRCP_y5 -> 2017 | H12: =FRCP_y1 -> 2018 | I12: =FRCP_y2 -> 2019 | J12: =FRCP_y3 -> 2020 | K12: =FRCP_y4 -> 2021 | L12: =FRCP_y5 -> 2022 | M12: =FRCP_y6 -> 2023
B13: Labour | C13: 4074884.335 | D13: 8804387.68 | E13: 9743978.124 | F13: 11162015.27 | G13: 11714777.13 | H13: 11468082.58 | I13: 11549947.39 | J13: 11577054.33 | K13: 11970388.46 | L13: 12072306.64
B14: Materials | C14: 674095.474 | D14: 977269.944 | E14: 1133993.703 | F14: 1203229.797 | G14: 1262815.77 | H14: 1236222.881 | I14: 1245047.647 | J14: 1247969.69 | K14: 1290369.86 | L14: 1301356.316
B15: Outside services | C15: 794422.243 | D15: 1606055.535 | E15: 2412830.003 | F15: 2173383.655 | G15: 2027104.961 | H15: 1984417.357 | I15: 1998583.104 | J15: 2003273.644 | K15: 2071335.508 | L15: 2088971.255
B16: Other operating costs | C16: 1504309.585 | D16: 2862494.838 | E16: 3113793.386 | F16: 3038215.836 | G16: 3442581.745 | H16: 3370086.454 | I16: 3394143.788 | J16: 3402109.614 | K16: 3517697.378 | L16: 3547647.727
B17: Overheads/corporate costs | C17: 4031744 | D17: 8920857.25 | E17: 7528264.018 | F17: 6436052.733 | G17: 6754776.942 | H17: 6612532.092 | I17: 6659735.597 | J17: 6675365.547 | K17: 6902163.23 | L17: 6960929.57
B18: Equity raising costs | I18: 0 | J18: 0 | K18: 0 | L18: 0
B19: Debt raising costs | H19: 60438.65125 | I19: 62301.80355 | J19: 62431.63381 | K19: 61523.39988 | L19: 60163.41432
B20: Insurance costs | C20: 606821.021 | D20: 846264.011 | E20: 854859.475 | F20: 654863.595 | G20: 687293.547 | H20: 672820.239 | I20: 677623.1606 | J20: 679213.4964 | K20: 702289.9926 | L20: 708269.4241
B21: Other overheads | C21: 165458 | D21: 444045.5 | E21: 307652 | F21: 299962.93 | G21: 314817.6013 | H21: 308188.0437 | I21: 310388.0415 | J21: 311116.5013 | K21: 321686.7841 | L21: 324425.687
B22: Total operating & maintenance expenditure - Pipeline Service | C22: =SUM(C13:C21) -> 11851734.66 | D22: 24461374.76 | E22: =SUM(E13:E21) -> 25095370.71 | F22: 24967723.82 | G22: 26204167.7 | H22: 25712788.29 | I22: 25897770.53 | J22: =SUM(J13:J21) -> 25958534.46 | K22: 26837454.62 | L22: =SUM(L13:L21) -> 27064070.04 | M22: 0
G24: 0 | H24: 0 | I24: 0 | J24: 0 | K24: 0 | L24: 0 | M24: 0
B25: 3.1.2 - CATEGORY SPECIFIC FORECASTS
E26: Next access arrangement period
E27: =CONCATENATE("$0's, real ",dms_DollarReal) -> $0's, real December 2017
E28: Forecast
E29: =FRCP_y1 -> 2018 | F29: =FRCP_y2 -> 2019 | G29: =FRCP_y3 -> 2020 | H29: =FRCP_y4 -> 2021 | I29: =FRCP_y5 -> 2022 | J29: =FRCP_y6 -> 2023
B30: Augmentation and Expansion related opex | E30: 276101.175 | F30: 365701.8821 | G30: 365701.8821 | H30: 411576.0821 | I30: 411576.0821 | J30: 0
B31: Allowances | E31: 2354585.233 | F31: 2448103.609 | G31: 2508737.709 | H31: 2555339.843 | I31: 2592357.841 | J31: 0
B32: Debt raising costs (as per PTRM) | E32: 60438.65125 | F32: 62301.80355 | G32: 62431.63381 | H32: 61523.39988 | I32: 60163.41432 | J32: 0
B37: Total category specific forecasts | E37: =SUM(E30:E36) -> 2691125.059 | F37: 2876107.295 | G37: 2936871.225 | H37: 3028439.325 | I37: 3064097.337 | J37: 0
E39: 0 | F39: 0 | G39: 0 | H39: 0 | I39: 0 | J39: 0
B40: 3.1.3 - STEP CHANGES
E41: Next access arrangement period
E42: =CONCATENATE("$0's, real ",dms_DollarReal) -> $0's, real December 2017
E43: Forecast
E44: =FRCP_y1 -> 2018 | F44: =FRCP_y2 -> 2019 | G44: =FRCP_y3 -> 2020 | H44: =FRCP_y4 -> 2021 | I44: =FRCP_y5 -> 2022 | J44: =FRCP_y6 -> 2023
B45: Docklands lease | E45: 158300.6756 | F45: 158300.6756 | G45: 158300.6756 | H45: 158300.6756 | I45: 158300.6756 | J45: 0
B52: Total step changes | E52: =SUM(E45:E51) -> 158300.6756 | F52: 158300.6756 | G52: 158300.6756 | H52: 158300.6756 | I52: 158300.6756 | J52: 0
B55: 3.1.4 - FORECAST OPEX SUMMARY
D56: Current access arrangement period | E56: Next access arrangement period
E57: =CONCATENATE("$0's, real ",dms_DollarReal) -> $0's, real December 2017
E58: Forecast
D59: =CRCP_y5 -> 2017 | E59: =FRCP_y1 -> 2018 | F59: =FRCP_y2 -> 2019 | G59: =FRCP_y3 -> 2020 | H59: =FRCP_y4 -> 2021 | I59: =FRCP_y5 -> 2022 | J59: =FRCP_y6 -> 2023
B60: Estimated final year opex | D60: 26204167.7 | E60: 22863362.56 | F60: 22863362.56 | G60: 22863362.56 | H60: 23650714.62 | I60: 23841672.03
B61: Real price growth | E61: 0 | F61: 0 | G61: 0 | H61: 0 | I61: 0
B62: Output growth | E62: 0 | F62: 0 | G62: 0 | H62: 0 | I62: 0
B63: Productivity growth | E63: 0 | F63: 0 | G63: 0 | H63: 0 | I63: 0
B64: Step changes | E64: 158300.6756 | F64: 158300.6756 | G64: 158300.6756 | H64: 158300.6756 | I64: 158300.6756
B65: Category specific forecasts | E65: 2691125.059 | F65: 2876107.295 | G65: 2936871.225 | H65: 3028439.325 | I65: 3064097.337
B66: Total opex | E66: =SUM(E60:E65) -> 25712788.29 | F66: 25897770.53 | G66: 25958534.46 | H66: 26837454.62 | I66: 27064070.04 | J66: 0
D68: 0 | E68: 0 | F68: 0 | G68: 0 | H68: 0 | I68: 0
B70: Note: 2017 forecast is calculated including 2016 base year plus step changes and separate forecasts (see forecast opex model for details)

Sheet 3.2 Provisions
B1: REGULATORY REPORTING STATEMENT
B2: =INDEX(dms_TradingNameFull_List,MATCH(dms_TradingName,dms_TradingName_List)) -> APA VTS Australia (Operations) Pty Ltd
B3: =IF(SUM(dms_SingleYear_Model)>0,CRY,CONCATENATE(FRCP_y1," to ",dms_MultiYear_FinalYear_Result)) -> 2018 to 2022
B4: 3.2 CHANGES IN PROVISIONS
B6: There is ONE table on this worksheet. It has been sub-grouped for ease of navigation. See the Instructions sheet on how to group or ungroup tables.
B9: 3.2 - CHANGES IN PROVISIONS
B10: 3.2.1 - CHANGES IN PROVISIONS (including RPM)
C11: $0's, nominal
C12: Actual | F12: Forecast
C13: 1 July to 31 December 2013 | D13: =CRCP_y2 -> 2014 | E13: =CRCP_y3 -> 2015 | F13: =CRCP_y4 -> 2016 | G13: =CRCP_y5 -> 2017 | H13: =CRCP_y6 -> 2018
B14: TOTAL PROVISIONS
B15: Opening Balance | C15: =SUM(C61,C69,C77,C85,C93,C101,C109,C117,C125,C133) -> -14442378.02 | D15: =SUM(D61,D69,D77,D85,D93,D101,D109,D117,D125,D133) -> -10484544.97 | E15: -18668462.54 | F15: -11532192.39 | G15: =SUM(G61,G69,G77,G85,G93,G101,G109,G117,G125,G133) -> -11140694.17 | H15: -11140694.17
B16: Liabilities paid from provision charged to opex | C16: =SUM(C62,C70,C78,C86,C94,C102,C110,C118,C126,C134) -> 901908 | D16: 937018.55 | E16: 791996.45 | F16: 1008457.72 | G16: =SUM(G62,G70,G78,G86,G94,G102,G110,G118,G126,G134) -> 0 | H16: 0
B17: Liabilities paid from provision charged to capex | C17: =SUM(C63,C71,C79,C87,C95,C103,C111,C119,C127,C135) -> 0 | D17: 0 | E17: 0 | F17: 0 | G17: =SUM(G63,G71,G79,G87,G95,G103,G111,G119,G127,G135) -> 0 | H17: 0
B18: Increase /decrease in provision charged to opex | C18: =SUM(C64,C72,C80,C88,C96,C104,C112,C120,C128,C136) -> -447074.95 | D18: -2203936.12 | E18: -960726.3 | F18: -441959.5 | G18: =SUM(G64,G72,G80,G88,G96,G104,G112,G120,G128,G136) -> 0 | H18: 0
B19: Increase/decrease in provision charged to capex | C19: =SUM(C65,C73,C81,C89,C97,C105,C113,C121,C129,C137) -> 0 | D19: 0 | E19: 0 | F19: 0 | G19: =SUM(G65,G73,G81,G89,G97,G105,G113,G121,G129,G137) -> 0 | H19: 0
B20: Other adjustments | C20: =SUM(C66,C74,C82,C90,C98,C106,C114,C122,C130,C138) -> 3503000 | D20: -6917000 | E20: 7305000 | F20: -175000 | G20: =SUM(G66,G74,G82,G90,G98,G106,G114,G122,G130,G138) -> 0 | H20: 0
B21: Closing Balance | C21: =SUM(C67,C75,C83,C91,C99,C107,C115,C123,C131,C139) -> -10484544.97 | D21: -18668462.54 | E21: -11532192.39 | F21: -11140694.17 | G21: =SUM(G67,G75,G83,G91,G99,G107,G115,G123,G131,G139) -> -11140694.17 | H21: -11140694.17
B22: Movement in total provisions | C22: =SUM(C68,C76,C84,C92,C100,C108,C116,C124,C132,C140) -> 0 | D22: 0 | E22: 0 | F22: 0 | G22: =SUM(G68,G76,G84,G92,G100,G108,G116,G124,G132,G140) -> 0 | H22: 0
B23: ALLOCATION OF MOVEMENT IN TOTAL PROVISIONS
B24: Operating and maintenance expenditure | C24: =SUM(C16,C18) -> 454833.05 | D24: =SUM(D16,D18) -> -1266917.57 | E24: -168729.85 | F24: 566498.22 | G24: =SUM(G16,G18) -> 0 | H24: 0
B25: Capital expenditure | C25: =SUM(C17,C19) -> 0 | D25: 0 | E25: 0 | F25: 0 | G25: =SUM(G17,G19) -> 0 | H25: 0
B26: ALLOCATION OF MOVEMENT IN PROVISIONS FOR CAPEX BY ASSET CLASS
B27: Pipelines
B28: Compressors
B29: City gates & Field regulators
B30: Odourant plants
B31: Gas quality
B32: Other
B33: General buildings
B34: General land
B52: Source(s) of data:
B56: 3.2.2 - CHANGES IN PROVISIONS BY PROVISION (including RPM)
C57: $0's, nominal
C58: Actual | F58: Forecast
C59: 1 July to 31 December 2013 | D59: =CRCP_y2 -> 2014 | E59: =CRCP_y3 -> 2015 | F59: =CRCP_y4 -> 2016 | G59: =CRCP_y5 -> 2017 | H59: =CRCP_y6 -> 2018
B60: Provision - Staff Incentive
B61: Opening Balance | C61: -803825.69 | D61: =C67 -> -315000 | E61: =D67 -> -393068.45 | F61: =E67 -> -588506.46 | G61: =F67 -> 0 | H61: =F67 -> 0
B62: Liabilities paid from provision charged to opex | C62: 901908 | D62: 937018.55 | E62: 791996.45 | F62: 1008457.72
B63: Liabilities paid from provision charged to capex
B64: Increase /decrease in provision charged to opex | C64: -413082.31 | D64: -1015087 | E64: -987434.46 | F64: -419951.26
B65: Increase/decrease in provision charged to capex
B66: Other adjustments
B67: Closing Balance | C67: =C61+SUM(C62:C66) -> -315000 | D67: -393068.45 | E67: =E61+SUM(E62:E66) -> -588506.46 | F67: 0 | G67: =G61+SUM(G62:G66) -> 0 | H67: 0
B68: Provision - Annual Leave
B69: Opening Balance | C69: -1179344.37 | D69: =C75 -> -1095508.02 | E69: =D75 -> -1367347.86 | F69: -1286774.66 | G69: =F75 -> -1251513.46 | H69: =F75 -> -1251513.46
B70: Liabilities paid from provision charged to opex
B71: Liabilities paid from provision charged to capex
B72: Increase /decrease in provision charged to opex | C72: 83836.35 | D72: -271839.84 | E72: 80573.2 | F72: 35261.2
B73: Increase/decrease in provision charged to capex
B74: Other adjustments
B75: Closing Balance | C75: =C69+SUM(C70:C74) -> -1095508.02 | D75: -1367347.86 | E75: -1286774.66 | F75: -1251513.46 | G75: =G69+SUM(G70:G74) -> -1251513.46 | H75: -1251513.46
B76: Provision - Long Service Leave
B77: Opening Balance | C77: -3617207.96 | D77: =C83 -> -3636036.95 | E77: =D83 -> -3936046.23 | F77: -3646911.27 | G77: =F83 -> -3633180.71 | H77: =F83 -> -3633180.71
B78: Liabilities paid from provision charged to opex
B79: Liabilities paid from provision charged to capex
B80: Increase /decrease in provision charged to opex | C80: -18828.99 | D80: -300009.28 | E80: 289134.96 | F80: 13730.56
B81: Increase/decrease in provision charged to capex
B82: Other adjustments
B83: Closing Balance | C83: =C77+SUM(C78:C82) -> -3636036.95 | D83: -3936046.23 | E83: -3646911.27 | F83: -3633180.71 | G83: =G77+SUM(G78:G82) -> -3633180.71 | H83: -3633180.71
B84: Defined Benefit Superannuation Obligation
B85: Opening Balance | C85: -8842000 | D85: =C91 -> -5438000 | E85: =D91 -> -12972000 | F85: -6010000 | G85: =F91 -> -6256000 | H85: =F91 -> -6256000
B86: Liabilities paid from provision charged to opex
B87: Liabilities paid from provision charged to capex
B88: Increase /decrease in provision charged to opex | C88: -99000 | D88: -617000 | E88: -343000 | F88: -71000
B89: Increase/decrease in provision charged to capex
B90: Other adjustments | C90: 3503000 | D90: -6917000 | E90: 7305000 | F90: -175000
B91: Closing Balance | C91: =C85+SUM(C86:C90) -> -5438000 | D91: -12972000 | E91: -6010000 | F91: -6256000 | G91: =G85+SUM(G86:G90) -> -6256000 | H91: -6256000
B92: < Insert name of provision >
B93: Opening Balance | D93: =C99 -> 0 | E93: =D99 -> 0 | F93: 0 | G93: =E99 -> 0 | H93: =F99 -> 0
B94: Liabilities paid from provision charged to opex
B95: Liabilities paid from provision charged to capex
B96: Increase /decrease in provision charged to opex
B97: Increase/decrease in provision charged to capex
B98: Other adjustments
B99: Closing Balance | C99: =C93+SUM(C94:C98) -> 0 | D99: 0 | E99: 0 | F99: 0 | G99: =G93+SUM(G94:G98) -> 0 | H99: 0
B100: < Insert name of provision >
B101: Opening Balance | D101: =C107 -> 0 | E101: =D107 -> 0 | F101: 0 | G101: =E107 -> 0 | H101: =F107 -> 0
B102: Liabilities paid from provision charged to opex
B103: Liabilities paid from provision charged to capex
B104: Increase /decrease in provision charged to opex
B105: Increase/decrease in provision charged to capex
B106: Other adjustments
B107: Closing Balance | C107: =C101+SUM(C102:C106) -> 0 | D107: 0 | E107: 0 | F107: 0 | G107: =G101+SUM(G102:G106) -> 0 | H107: 0
B108: < Insert name of provision >
B109: Opening Balance | D109: =C115 -> 0 | E109: =D115 -> 0 | F109: 0 | G109: =E115 -> 0 | H109: =F115 -> 0
B110: Liabilities paid from provision charged to opex
B111: Liabilities paid from provision charged to capex
B112: Increase /decrease in provision charged to opex
B113: Increase/decrease in provision charged to capex
B114: Other adjustments
B115: Closing Balance | C115: =C109+SUM(C110:C114) -> 0 | D115: 0 | E115: 0 | F115: 0 | G115: =G109+SUM(G110:G114) -> 0 | H115: 0
B116: < Insert name of provision >
B117: Opening Balance | D117: =C123 -> 0 | E117: =D123 -> 0 | F117: 0 | G117: =E123 -> 0 | H117: =F123 -> 0
B118: Liabilities paid from provision charged to opex
B119: Liabilities paid from provision charged to capex
B120: Increase /decrease in provision charged to opex
B121: Increase/decrease in provision charged to capex
B122: Other adjustments
B123: Closing Balance | C123: =C117+SUM(C118:C122) -> 0 | D123: 0 | E123: 0 | F123: 0 | G123: =G117+SUM(G118:G122) -> 0 | H123: 0
B124: < Insert name of provision >
B125: Opening Balance | D125: =C131 -> 0 | E125: =D131 -> 0 | F125: 0 | G125: =E131 -> 0 | H125: =F131 -> 0
B126: Liabilities paid from provision charged to opex
B127: Liabilities paid from provision charged to capex
B128: Increase /decrease in provision charged to opex
B129: Increase/decrease in provision charged to capex
B130: Other adjustments
B131: Closing Balance | C131: =C125+SUM(C126:C130) -> 0 | D131: 0 | E131: 0 | F131: 0 | G131: =G125+SUM(G126:G130) -> 0 | H131: 0
B132: < Insert name of provision >
B133: Opening Balance | D133: =C139 -> 0 | E133: =D139 -> 0 | F133: 0 | G133: =E139 -> 0 | H133: =F139 -> 0
B134: Liabilities paid from provision charged to opex
B135: Liabilities paid from provision charged to capex
B136: Increase /decrease in provision charged to opex
B137: Increase/decrease in provision charged to capex
B138: Other adjustments
B139: Closing Balance | C139: =C133+SUM(C134:C138) -> 0 | D139: 0 | E139: 0 | F139: 0 | G139: =G133+SUM(G134:G138) -> 0 | H139: 0

Sheet 4. Capex
B1: REGULATORY REPORTING STATEMENT
B2: =INDEX(dms_TradingNameFull_List,MATCH(dms_TradingName,dms_TradingName_List)) -> APA VTS Australia (Operations) Pty Ltd
B3: =IF(SUM(dms_SingleYear_Model)>0,CRY,CONCATENATE(FRCP_y1," to ",dms_MultiYear_FinalYear_Result)) -> 2018 to 2022
B4: 4. CAPITAL EXPENDITURE
B7: Instructions
B8: In Tables 4.1.1 - 4.1.3, for each project relevant to augmentations, refurbishments and upgrades, non-system and other capex, insert each project name and then enter the required details into the yellow cells. In the Table 4.3 provide the total capital expenditure for the next access arrangement period split by direct labour, materials, contractor and other costs and overheads.
B10: 4.1 - CAPEX
B12: 4.1.1 - EXPANSION (by Project)
C13: EXPENDITURE Actual ($0's) | F13: =CONCATENATE("EXPENDITURE Forecast ($0's real, ",dms_DollarReal,")") -> EXPENDITURE Forecast ($0's real, December 2017)
C14: 1 July to 31 December 2013 | D14: =CRCP_y2 -> 2014 | E14: =CRCP_y3 -> 2015 | F14: =CRCP_y4 -> 2016 | G14: =CRCP_y5 -> 2017 | H14: =FRCP_y1 -> 2018 | I14: =FRCP_y2 -> 2019 | J14: =FRCP_y3 -> 2020 | K14: =FRCP_y4 -> 2021 | L14: =FRCP_y5 -> 2022
B15: Stonehaven CS - now Winchelsea | C15: 8134553.96 | D15: 26606375.39 | E15: 2492547.98 | F15: 886.0427 | G15: 0 | H15: 1456774.406 | I15: 0 | J15: 0 | K15: 0 | L15: 0
B16: VNIE Looping 6 to 8 | C16: 0 | D16: 0 | E16: 6392032.451 | F16: 92414222.78 | G16: 43063099.49 | H16: 0 | I16: 0 | J16: 0 | K16: 0 | L16: 0
B17: Wollert to Clonbinane Looping | C17: 4006990.75 | D17: 85648927.66 | E17: 65640112.89 | F17: 641555.4441 | G17: 0 | H17: 0 | I17: 0 | J17: 0 | K17: 0 | L17: 0
B18: Warragul Looping | C18: 0 | D18: 0 | E18: 0 | F18: 0 | G18: 0 | H18: 0 | I18: 5540353.957 | J18: 2087002.451 | K18: 0 | L18: 0
B19: Anglesea Pipeline Extension | C19: 0 | D19: 0 | E19: 0 | F19: 0 | G19: 9267887.283 | H19: 17048466.25 | I19: 0 | J19: 0 | K19: 0 | L19: 0
B20: VTS - EUROA CS NEW (PPOM) | C20: 116664.37 | D20: 121805.28 | E20: 59020.54 | F20: -2970.6524 | G20: 0 | H20: 0 | I20: 0 | J20: 0 | K20: 0 | L20: 0
B21: VTS - SUNBURY PIPE LOOP (NEW) | C21: 51715.09 | D21: 38571.05 | E21: 5019.95 | F21: 4069.3708 | G21: 0 | H21: 0 | I21: 0 | J21: 0 | K21: 0 | L21: 0
B22: BCS Reconfiguration (2B) | C22: 0 | D22: 0 | E22: 0 | F22: 0 | G22: 0 | H22: 2010116.482 | I22: 0 | J22: 0 | K22: 0 | L22: 0
B23: WORM Easement | C23: 0 | D23: 0 | E23: 0 | F23: 0 | G23: 0 | H23: 8897765.156 | I23: 8897765.156 | J23: 8897765.156 | K23: 0 | L23: 0
B47: Total | C47: =SUM(C15:C46) -> 12309924.17 | D47: 112415679.4 | E47: 74588733.81 | F47: 93057762.99 | G47: 52330986.77 | H47: 29413122.3 | I47: 14438119.11 | J47: 10984767.61 | K47: 0 | L47: 0
C48: 0 | D48: 0 | E48: 0 | F48: 0 | G48: 0 | H48: 0 | I48: 0 | J48: 0 | K48: 0 | L48: 0
B51: 4.1.2 - REPLACEMENT (by Project)
C52: EXPENDITURE Actual ($0's) | F52: =CONCATENATE("EXPENDITURE Forecast ($0's real, ",dms_DollarReal,")") -> EXPENDITURE Forecast ($0's real, December 2017)
C53: 1 July to 31 December 2013 | D53: =CRCP_y2 -> 2014 | E53: =CRCP_y3 -> 2015 | F53: =CRCP_y4 -> 2016 | G53: =CRCP_y5 -> 2017 | H53: =FRCP_y1 -> 2018 | I53: =FRCP_y2 -> 2019 | J53: =FRCP_y3 -> 2020 | K53: =FRCP_y4 -> 2021 | L53: =FRCP_y5 -> 2022
B54: Regulator upgrade - Dandenong City Gate (exclude filters) | C54: 479498.96 | D54: 2616566.96 | E54: 7811136.25 | F54: 757968.438 | G54: 0 | H54: 0 | I54: 0 | J54: 0 | K54: 0 | L54: 0
B55: BCS Unit 10 & 11 Cooler Upgrade | C55: 27089.84 | D55: 889622.65 | E55: 5007242.54 | F55: 3304956.431 | G55: 0 | H55: 0 | I55: 0 | J55: 0 | K55: 0 | L55: 0
B56: Pigging Program (T1 Dandenong - Morwell) | C56: 0 | D56: 0 | E56: 0 | F56: 0 | G56: 3000000 | H56: 0 | I56: 0 | J56: 0 | K56: 0 | L56: 0
B57: Pig Trap - Keon Park Install | C57: 325106.72 | D57: 1640823.98 | E57: 0 | F57: 0 | G57: 0 | H57: 0 | I57: 0 | J57: 0 | K57: 0 | L57: 0
B58: Pig Trap - Dandenong to Princes Highway Pipeline Install (129) | C58: 0 | D58: 0 | E58: 31113.5 | F58: 354230.7148 | G58: 1500000 | H58: 0 | I58: 0 | J58: 0 | K58: 0 | L58: 0
B59: BCS Station Isolation and Loading Valves | C59: 2244.6 | D59: 16577.75 | E59: 183683.64 | F59: 1626560.085 | G59: 0 | H59: 0 | I59: 0 | J59: 0 | K59: 0 | L59: 0
B60: Pig Trap - Somerton to Somerton Pipeline Install (238) | C60: 0 | D60: 1590 | E60: 24041.28 | F60: 3753.2812 | G60: 1500000 | H60: 0 | I60: 0 | J60: 0 | K60: 0 | L60: 0
B61: CP - Cathodic Protection Replacement | C61: 18725 | D61: 98704 | E61: 20000 | F61: 90698 | G61: 50000 | H61: 238391.238 | I61: 238391.238 | J61: 238391.238 | K61: 238391.238 | L61: 238391.238
B62: Hazardous Area Rectification | C62: 10313.6 | D62: 32182.3 | E62: 134741.2 | F62: 164612.9916 | G62: 100000 | H62: 182538.2436 | I62: 182538.2436 | J62: 182538.2436 | K62: 182538.2436 | L62: 182538.2436
B63: Pig Trap - A Branch Valve on Pipeline 108 to Newport Install(124) | C63: 0 | D63: 0 | E63: 20098.4 | F63: 877507.2102 | G63: 0 | H63: 0 | I63: 0 | J63: 0 | K63: 0 | L63: 0
B64: GCS Anti-Surge & Fast-Stop Valves Upgrade | C64: 0 | D64: 0 | E64: 10038.5 | F64: 502275.5654 | G64: 365000 | H64: 0 | I64: 0 | J64: 0 | K64: 0 | L64: 0
B65: BLP Safety Measures for High Consequence areas-(urban growth, fracture control) | C65: 0 | D65: 0 | E65: 0 | F65: 0 | G65: 0 | H65: 6193874.871 | I65: 4419045.957 | J65: 0 | K65: 0 | L65: 0
B66: WOP Safety Measures for High Consequence areas-(urban growth, fracture control) | C66: 0 | D66: 0 | E66: 0 | F66: 0 | G66: 0 | H66: 4614866.886 | I66: 3255708.318 | J66: 0 | K66: 0 | L66: 0
B67: BCP Safety Measures for High Consequence areas-(urban growth, fracture control) | C67: 0 | D67: 0 | E67: 0 | F67: 0 | G67: 0 | H67: 3190712.677 | I67: 2275996.789 | J67: 0 | K67: 0 | L67: 0
B68: Turbine Overhauls | C68: 0 | D68: 0 | E68: 0 | F68: 0 | G68: 0 | H68: 0 | I68: 0 | J68: 0 | K68: 1030207.478 | L68: 3686038.045
B69: Pig Trap Installation Trugannina to Plumpton | C69: 0 | D69: 0 | E69: 0 | F69: 0 | G69: 0 | H69: 0 | I69: 0 | J69: 0 | K69: 3004080.461 | L69: 331199.5496
B70: BCS Unit 10 & 11 controls upgrade | C70: 0 | D70: 0 | E70: 0 | F70: 0 | G70: 0 | H70: 0 | I70: 0 | J70: 0 | K70: 1278493.09 | L70: 1278493.09
B71: Pigging Program T60 Longford -Dandenong | C71: 0 | D71: 0 | E71: 0 | F71: 0 | G71: 0 | H71: 0 | I71: 0 | J71: 0 | K71: 0 | L71: 2441626.296
B72: VNIE Safety Measures for High Consequence areas-(urban growth, fracture control) | C72: 0 | D72: 0 | E72: 0 | F72: 0 | G72: 0 | H72: 1249201.894 | I72: 1067344.926 | J72: 0 | K72: 0 | L72: 0
B73: BCS Unit 8 & 9 controls upgrade | C73: 0 | D73: 0 | E73: 0 | F73: 0 | G73: 0 | H73: 0 | I73: 1145688.652 | J73: 1145688.652 | K73: 0 | L73: 0
B74: Pig Trap Installation James Street to Laverton Pipeline (253) | C74: 0 | D74: 0 | E74: 0 | F74: 0 | G74: 0 | H74: 0 | I74: 1943118.483 | J74: 213148.3484 | K74: 0 | L74: 0
B75: Actuate MLV's in T1 areas | C75: 0 | D75: 0 | E75: 0 | F75: 0 | G75: 0 | H75: 981102.4499 | I75: 981102.4499 | J75: 0 | K75: 0 | L75: 0
B76: Pig Trap Installation Regent St Pipeline (36) | C76: 0 | D76: 0 | E76: 0 | F76: 0 | G76: 0 | H76: 0 | I76: 0 | J76: 1649568.07 | K76: 212993.9007 | L76: 0
B77: Coogee Decommissioning | C77: 0 | D77: 0 | E77: 0 | F77: 0 | G77: 0 | H77: 1818932.15 | I77: 0 | J77: 0 | K77: 0 | L77: 0
B78: Iona CS aftercooler augmentation | C78: 0 | D78: 0 | E78: 0 | F78: 0 | G78: 0 | H78: 0 | I78: 0 | J78: 0 | K78: 1698571.067 | L78: 0
B79: Pig Trap Installation Packenham (200mm) | C79: 0 | D79: 0 | E79: 0 | F79: 0 | G79: 0 | H79: 0 | I79: 0 | J79: 1475634.894 | K79: 195619.0979 | L79: 0
B80: Pigging Program T24 Brooklyn - Corio | C80: 0 | D80: 0 | E80: 0 | F80: 0 | G80: 0 | H80: 0 | I80: 0 | J80: 0 | K80: 1415864.081 | L80: 0
B81: Pigging Program T16 Dandenong – West Melbourne | C81: 0 | D81: 0 | E81: 0 | F81: 0 | G81: 0 | H81: 0 | I81: 0 | J81: 0 | K81: 1412896.214 | L81: 0
B82: Emergency- Response Equipment | C82: 0 | D82: 0 | E82: 0 | F82: 0 | G82: 0 | H82: 264381.6642 | I82: 264381.6642 | J82: 264381.6642 | K82: 264381.6642 | L82: 264381.6642
B83: BCS Unit 8,9,10,11 electric start conversion | C83: 0 | D83: 0 | E83: 0 | F83: 0 | G83: 0 | H83: 0 | I83: 0 | J83: 0 | K83: 0 | L83: 1319112.115
B84: Iona CS Automation replacement | C84: 0 | D84: 0 | E84: 0 | F84: 0 | G84: 0 | H84: 0 | I84: 0 | J84: 1203328.548 | K84: 0 | L84: 0
B85: BCS Unit 8,9,10,11 exhaust stack replacement | C85: 0 | D85: 0 | E85: 0 | F85: 0 | G85: 0 | H85: 0 | I85: 0 | J85: 0 | K85: 1191630.226 | L85: 0
B86: Pig Trap Installation Laverton North to Laverton North Pipeline (162) | C86: 0 | D86: 0 | E86: 0 | F86: 0 | G86: 0 | H86: 0 | I86: 1044759.333 | J86: 139587.2724 | K86: 0 | L86: 0
B87: Pig Trap Installation Somerton to Somerton | C87: 0 | D87: 0 | E87: 0 | F87: 0 | G87: 0 | H87: 1056063.634 | I87: 120828.8033 | J87: 0 | K87: 0 | L87: 0
B88: BCS Unit 8,9,10,11 Fuel Gas Modification | C88: 0 | D88: 0 | E88: 0 | F88: 0 | G88: 0 | H88: 1136433.973 | I88: 0 | J88: 0 | K88: 0 | L88: 0
B89: Pigging Program T1 Morwell - Dandenong Repair Program | C89: 0 | D89: 0 | E89: 0 | F89: 0 | G89: 0 | H89: 949120.2318 | I89: 178554.931 | J89: 0 | K89: 0 | L89: 0
B90: Compressor Type B Compliance | C90: 0 | D90: 0 | E90: 0 | F90: 0 | G90: 0 | H90: 222243.9419 | I90: 222243.9419 | J90: 222243.9419 | K90: 222243.9419 | L90: 222243.9419
B91: WCS A Process Safety | C91: 0 | D91: 0 | E91: 0 | F91: 0 | G91: 0 | H91: 0 | I91: 0 | J91: 1072161.714 | K91: 0 | L91: 0
B92: Pigging Program T33 South Melbourne – Brooklyn | C92: 0 | D92: 0 | E92: 0 | F92: 0 | G92: 0 | H92: 0 | I92: 0 | J92: 0 | K92: 1049759.801 | L92: 0
B93: Compressor Station Vent Stack Upgrade (BCS, WCS, GCS, SCS) | C93: 0 | D93: 0 | E93: 0 | F93: 0 | G93: 0 | H93: 0 | I93: 338821.4579 | J93: 338821.4579 | K93: 338821.4579 | L93: 0
B94: BBP Safety Measures for High Consequence areas-(urban growth, fracture control) | C94: 0 | D94: 0 | E94: 0 | F94: 0 | G94: 0 | H94: 543570.1158 | I94: 459010.1547 | J94: 0 | K94: 0 | L94: 0
B95: Culcairn Injection Gas Quality equipment | C95: 0 | D95: 0 | E95: 0 | F95: 0 | G95: 0 | H95: 998792.2516 | I95: 0 | J95: 0 | K95: 0 | L95: 0
B96: GCS unit discharge and station manifold check valves replacement | C96: 0 | D96: 0 | E96: 0 | F96: 0 | G96: 0 | H96: 0 | I96: 0 | J96: 924949.3175 | K96: 0 | L96: 0
B97: Pipe Support replacement | C97: 0 | D97: 0 | E97: 0 | F97: 0 | G97: 0 | H97: 169013.022 | I97: 169013.022 | J97: 169013.022 | K97: 169013.022 | L97: 169013.022
B98: Remote CP/critical drainage bond monitoring | C98: 0 | D98: 0 | E98: 0 | F98: 0 | G98: 0 | H98: 587664.214 | I98: 61997.94082 | J98: 61997.94082 | K98: 61997.94082 | L98: 61997.94082
B99: Pigging Program T60 Longford – Tyers | C99: 0 | D99: 0 | E99: 0 | F99: 0 | G99: 0 | H99: 0 | I99: 0 | J99: 0 | K99: 0 | L99: 767479.0509
B100: Other Replacement (details in forecast capex model) | C100: 687463.28 | D100: 2225620.68 | E100: 966237.34 | F100: 2946756.396 | G100: 1590000 | H100: 7672470.773 | I100: 4360649.534 | J100: 2632272.365 | K100: 2394161.212 | L100: 2395848.963
B110: Total | C110: =SUM(C54:C109) -> 1550442 | D110: 7521688.32 | E110: 14208332.65 | F110: 10629319.11 | G110: 8105000 | H110: 32069374.23 | I110: 22729195.84 | J110: 11933726.69 | K110: 16361664.14 | L110: 13358363.16
C111: 0 | D111: 0 | E111: 0 | F111: 0 | G111: 0 | H111: 0 | I111: 0 | J111: 0 | K111: 0 | L111: 0
B113: 4.1.3 - NON SYSTEM CAPEX
C114: EXPENDITURE Actual ($0's) | F114: =CONCATENATE("EXPENDITURE Forecast ($0's real, ",dms_DollarReal,")") -> EXPENDITURE Forecast ($0's real, December 2017)
C115: 1 July to 31 December 2013 | D115: =CRCP_y2 -> 2014 | E115: =CRCP_y3 -> 2015 | F115: =CRCP_y4 -> 2016 | G115: =CRCP_y5 -> 2017 | H115: =FRCP_y1 -> 2018 | I115: =FRCP_y2 -> 2019 | J115: =FRCP_y3 -> 2020 | K115: =FRCP_y4 -> 2021 | L115: =FRCP_y5 -> 2022
B116: Enterprise Asset Management | C116: 806330.3274 | D116: 1986550.97 | E116: 2564771.545 | F116: 1789.59464 | G116: 0 | H116: 0 | I116: 0 | J116: 0 | K116: 0 | L116: 0
B117: Dandenong site fire mains replacement | C117: 4961.33781 | D117: 88164.18141 | E117: 1020411.517 | F117: 30477.7954 | G117: 47050 | H117: 0 | I117: 0 | J117: 0 | K117: 0 | L117: 0
B118: Corporate IT | C118: 211241.5961 | D118: 302736.8717 | E118: 276048.921 | F118: 378067.5907 | G118: 0.2753036671 | H118: 0 | I118: 0 | J118: 0 | K118: 0 | L118: 0
B119: SCADA - Comms upgrade to IP network-VTS only | C119: 0 | D119: 0 | E119: 0 | F119: 56484.25 | G119: 1000000 | H119: 0 | I119: 0 | J119: 0 | K119: 0 | L119: 0
B120: Data Centre | C120: 65362.01891 | D120: 895833.2344 | E120: 79250.17449 | F120: 0 | G120: 0 | H120: 0 | I120: 0 | J120: 0 | K120: 0 | L120: 0
B121: Equipment - Victorian low value pool purchases | C121: 52890.5047 | D121: 215346.1091 | E121: 550230.7606 | F121: 165018.1296 | G121: 28230 | H121: 0 | I121: 0 | J121: 0 | K121: 0 | L121: 0
B122: SCADA System Upgrade | C122: 0 | D122: 0 | E122: 25383.25 | F122: 114169.9253 | G122: 450000 | H122: 410198.3003 | I122: 0 | J122: 0 | K122: 0 | L122: 0
B123: Corporate other | C123: 242365.2632 | D123: 340342.973 | E123: 308327.8805 | F123: 17698.08103 | G123: 0 | H123: 0 | I123: 0 | J123: 0 | K123: 0 | L123: 0
B124: APA Grid Extend Program | C124: 0 | D124: 0 | E124: 0 | F124: 0 | G124: 261222.237 | H124: 267882.294 | I124: 0 | J124: 0 | K124: 0 | L124: 0
B125: BI - Transmission Dashboard and Enterprise Pilot | C125: 0 | D125: 0 | E125: 0 | F125: 0 | G125: 125386.6737 | H125: 214305.8352 | I125: 160729.3764 | J125: 0 | K125: 0 | L125: 0
B126: Enterprise Content Management | C126: 0 | D126: 0 | E126: 104729.0841 | F126: 329210.0183 | G126: -0.05111694266 | H126: 0 | I126: 0 | J126: 0 | K126: 0 | L126: 0
B127: Dandenong Relocation | C127: 0 | D127: 0 | E127: 0 | F127: 0 | G127: 5057811.872 | H127: 0 | I127: 0 | J127: 0 | K127: 0 | L127: 0
B128: WAN Upgrade (Satellite project) | C128: 0 | D128: 0 | E128: 0 | F128: 0 | G128: 0 | H128: 971136.1899 | I128: 971136.1899 | J128: 971136.1899 | K128: 971136.1899 | L128: 971136.1899
B129: Applications Renewal | C129: 0 | D129: 0 | E129: 0 | F129: 0 | G129: 0 | H129: 739355.1314 | I129: 923658.1497 | J129: 739355.1314 | K129: 923658.1497 | L129: 739355.1314
B130: Storage shed-Dandenong, Wollert & Springhurst | C130: 0 | D130: 0 | E130: 0 | F130: 0 | G130: 0 | H130: 0 | I130: 616300.6773 | J130: 616300.6773 | K130: 616300.6773 | L130: 0
B131: Other Non System (details in forecast capex model) | C131: 352672.2813 | D131: 408852.6704 | E131: 800943.2871 | F131: 1283725.326 | G131: 1581119.372 | H131: 2009398.753 | I131: 854175.3892 | J131: 877630.7966 | K131: 1005995.221 | L131: 565318.3779
B166: Total | C166: =SUM(C116:C165) -> 1735823.329 | D166: 4237827.01 | E166: 5730096.42 | F166: 2376640.711 | G166: 8550820.379 | H166: 4612276.504 | I166: 3525999.783 | J166: 3204422.795 | K166: 3517090.238 | L166: 2275809.699
C167: 0 | D167: 0 | E167: 0 | F167: 0 | G167: 0 | H167: 0 | I167: 0 | J167: 0 | K167: 0 | L167: 0
B170: 4.3 - FORECAST CAPEX
F171: =CONCATENATE("EXPENDITURE Forecast ($0's real, ",dms_DollarReal,")") -> EXPENDITURE Forecast ($0's real, December 2017)
F172: =CRCP_y4 -> 2016 | G172: =CRCP_y5 -> 2017 | H172: =FRCP_y1 -> 2018 | I172: =FRCP_y2 -> 2019 | J172: =FRCP_y3 -> 2020 | K172: =FRCP_y4 -> 2021 | L172: =FRCP_y5 -> 2022
B173: Direct labour expenditure | F173: 13777551.48 | G173: 10296658.23 | H173: 18971344.89 | I173: 8158137.452 | J173: 4638135.6 | K173: 4944666.947 | L173: 4090711.023
B174: Direct materials expenditure | F174: 31494226.58 | G174: 19259904.59 | H174: 16087606.41 | I174: 10028413.2 | J174: 5048121.346 | K174: 4270298.25 | L174: 2882681.46
B175: Direct contractor expenditure | F175: 56200349.9 | G175: 35202122.7 | H175: 18337201.44 | I175: 13401344.84 | J175: 7382692.423 | K175: 10507586.61 | L175: 8572944.193
B176: Other direct expenditure | F176: 4591594.956 | G176: 4228121.252 | H176: 12698620.29 | I176: 9105419.244 | J176: 9053967.724 | K176: 156202.5678 | L176: 87836.18445
B177: Overheads | F177: 0 | G177: 0
B178: Total | F178: =SUM(F173:F177) -> 106063722.9 | G178: 68986806.77 | H178: 66094773.03 | I178: 40693314.73 | J178: 26122917.09 | K178: 19878754.37 | L178: 15634172.86
F180: =F47+F110+F166-F178 -> -0.1114780605 | G180: =G47+G110+G166-G178 -> 0.3788929582 | H180: 0 | I180: 0 | J180: 0 | K180: 0 | L180: 0

Sheet 7. Capital Base
B1: REGULATORY REPORTING STATEMENT
B2: =INDEX(dms_TradingNameFull_List,MATCH(dms_TradingName,dms_TradingName_List)) -> APA VTS Australia (Operations) Pty Ltd
B3: =IF(SUM(dms_SingleYear_Model)>0,CRY,CONCATENATE(FRCP_y1," to ",dms_MultiYear_FinalYear_Result)) -> 2018 to 2022
B4: 7. CAPITAL BASE
B6: There are ONE table on this worksheet. Each sub-table has been 'grouped' for easy navigation. See the Instructions sheet on how to group or ungroup data.
B8: 7.1 - CAPITAL EXPENDITURE - AS INCURRED (by driver)
C9: EXPENDITURE Actual ($0's) | F9: =CONCATENATE("EXPENDITURE Forecast ($0's real, ",dms_DollarReal,")") -> EXPENDITURE Forecast ($0's real, December 2017)
C10: 1 July to 31 December 2013 | D10: =CRCP_y2 -> 2014 | E10: =CRCP_y3 -> 2015 | F10: =CRCP_y4 -> 2016 | G10: =CRCP_y5 -> 2017 | H10: =FRCP_y1 -> 2018 | I10: =FRCP_y2 -> 2019 | J10: =FRCP_y3 -> 2020 | K10: =FRCP_y4 -> 2021 | L10: =FRCP_y5 -> 2022
B11: PIPELINE
B12: Replacement
B13: Conforming capital expenditure | C13: 52902.3 | D13: 138555.75 | E13: 40185.4 | F13: 1125263.745 | G13: 210000 | H13: 20778554.45 | I13: 15845201.63 | J13: 3883697.556 | K13: 3581706.482 | L13: 500212.5716
B14: Non-conforming capital expenditure - recovered by a surcharge
B15: Non-conforming capital expenditure - added to the speculative capital expenditure account
B16: Non-conforming capital expenditure - other
B17: Capital contributions rolled into the capital base
B18: Speculative capital expenditure account rolled into the capital base
B19: Re-use of redundant assets rolled into the capital base
B20: Redundant assets rolled out of the capital base
B21: Disposals
B22: Expansion
B23: Conforming capital expenditure | C23: 4058705.84 | D23: 85687498.71 | E23: 72037165.29 | F23: 93059847.6 | G23: 52330986.77 | H23: 17048466.25 | I23: 5540353.957 | J23: 2087002.451 | K23: 0 | L23: 0
B24: Non-conforming capital expenditure - recovered by a surcharge
B25: Non-conforming capital expenditure - added to the speculative capital expenditure account
B26: Non-conforming capital expenditure - other
B27: Capital contributions rolled into the capital base
B28: Speculative capital expenditure account rolled into the capital base
B29: Re-use of redundant assets rolled into the capital base
B30: Redundant assets rolled out of the capital base
B31: Disposals
B32: Non-system
B33: Conforming capital expenditure | G33: 0 | H33: 0 | I33: 0 | J33: 0 | K33: 0 | L33: 0
B34: Non-conforming capital expenditure - recovered by a surcharge
B35: Non-conforming capital expenditure - added to the speculative capital expenditure account
B36: Non-conforming capital expenditure - other
B37: Capital contributions rolled into the capital base
B38: Speculative capital expenditure account rolled into the capital base
B39: Re-use of redundant assets rolled into the capital base
B40: Redundant assets rolled out of the capital base
B41: Disposals
B43: COMPRESSORS
B44: Replacement
B45: Conforming capital expenditure | C45: 150026.93 | D45: 1070306.11 | E45: 5214100.68 | F45: 6351963.094 | G45: 965000 | H45: 5381714.988 | I45: 2141313.766 | J45: 5331213.253 | K45: 6183986.882 | L45: 7238641.726
B46: Non-conforming capital expenditure - recovered by a surcharge
B47: Non-conforming capital expenditure - added to the speculative capital expenditure account
B48: Non-conforming capital expenditure - other
B49: Capital contributions rolled into the capital base
B50: Speculative capital expenditure account rolled into the capital base
B51: Re-use of redundant assets rolled into the capital base
B52: Redundant assets rolled out of the capital base
B53: Disposals
B54: Expansion
B55: Conforming capital expenditure | C55: 8251218.33 | D55: 26728180.67 | E55: 2551568.52 | F55: 886.0427 | G55: 0 | H55: 3466890.888 | I55: 0 | J55: 0 | K55: 0 | L55: 0
B56: Non-conforming capital expenditure - recovered by a surcharge
B57: Non-conforming capital expenditure - added to the speculative capital expenditure account
B58: Non-conforming capital expenditure - other
B59: Capital contributions rolled into the capital base
B60: Speculative capital expenditure account rolled into the capital base
B61: Re-use of redundant assets rolled into the capital base
B62: Redundant assets rolled out of the capital base
B63: Disposals
B64: Non-system
B65: Conforming capital expenditure | C65: 15596189.5 | D65: 124175194.7 | E65: 94527162.88 | F65: 106063722.8 | G65: 0 | H65: 0 | I65: 0 | J65: 0 | K65: 0 | L65: 84093.45321
B66: Non-conforming capital expenditure - recovered by a surcharge
B67: Non-conforming capital expenditure - added to the speculative capital expenditure account
B68: Non-conforming capital expenditure - other
B69: Capital contributions rolled into the capital base
B70: Speculative capital expenditure account rolled into the capital base
B71: Re-use of redundant assets rolled into the capital base
B72: Redundant assets rolled out of the capital base
B73: Disposals
B75: CITY GATES & FIELD REGULATORS
B76: Replacement
B77: Conforming capital expenditure | C77: 1103730.39 | D77: 5106391.56 | E77: 8375791.26 | F77: 1518056.644 | G77: 3460000 | H77: 0 | I77: 635046.2425 | J77: 351074.6144 | K77: 678111.4341 | L77: 245102.2339
B78: Non-conforming capital expenditure - recovered by a surcharge
B79: Non-conforming capital expenditure - added to the speculative capital expenditure account
B80: Non-conforming capital expenditure - other
B81: Capital contributions rolled into the capital base
B82: Speculative capital expenditure account rolled into the capital base
B83: Re-use of redundant assets rolled into the capital base
B84: Redundant assets rolled out of the capital base
B85: Disposals
B86: Expansion
B87: Conforming capital expenditure | G87: 0 | H87: 0 | I87: 0 | J87: 0 | K87: 0 | L87: 0
B88: Non-conforming capital expenditure - recovered by a surcharge
B89: Non-conforming capital expenditure - added to the speculative capital expenditure account
B90: Non-conforming capital expenditure - other
B91: Capital contributions rolled into the capital base
B92: Speculative capital expenditure account rolled into the capital base
B93: Re-use of redundant assets rolled into the capital base
B94: Redundant assets rolled out of the capital base
B95: Disposals
B96: Non-system
B97: Conforming capital expenditure | G97: 0 | H97: 0 | I97: 0 | J97: 0 | K97: 0 | L97: 0
B98: Non-conforming capital expenditure - recovered by a surcharge
B99: Non-conforming capital expenditure - added to the speculative capital expenditure account
B100: Non-conforming capital expenditure - other
B101: Capital contributions rolled into the capital base
B102: Speculative capital expenditure account rolled into the capital base
B103: Re-use of redundant assets rolled into the capital base
B104: Redundant assets rolled out of the capital base
B105: Disposals
B107: ODOURANT PLANTS
B108: Replacement
B109: Conforming capital expenditure | G109: 0 | H109: 77495.89348 | I109: 0 | J109: 0 | K109: 0 | L109: 0
B110: Non-conforming capital expenditure - recovered by a surcharge
B111: Non-conforming capital expenditure - added to the speculative capital expenditure account
B112: Non-conforming capital expenditure - other
B113: Capital contributions rolled into the capital base
B114: Speculative capital expenditure account rolled into the capital base
B115: Re-use of redundant assets rolled into the capital base
B116: Redundant assets rolled out of the capital base
B117: Disposals
B118: Expansion
B119: Conforming capital expenditure | G119: 0 | H119: 0 | I119: 0 | J119: 0 | K119: 0 | L119: 0
B120: Non-conforming capital expenditure - recovered by a surcharge
B121: Non-conforming capital expenditure - added to the speculative capital expenditure account
B122: Non-conforming capital expenditure - other
B123: Capital contributions rolled into the capital base
B124: Speculative capital expenditure account rolled into the capital base
B125: Re-use of redundant assets rolled into the capital base
B126: Redundant assets rolled out of the capital base
B127: Disposals
B128: Non-system
B129: Conforming capital expenditure | G129: 0 | H129: 0 | I129: 0 | J129: 0 | K129: 0 | L129: 0
B130: Non-conforming capital expenditure - recovered by a surcharge
B131: Non-conforming capital expenditure - added to the speculative capital expenditure account
B132: Non-conforming capital expenditure - other
B133: Capital contributions rolled into the capital base
B134: Speculative capital expenditure account rolled into the capital base
B135: Re-use of redundant assets rolled into the capital base
B136: Redundant assets rolled out of the capital base
B137: Disposals
B139: GAS QUALITY
B140: Replacement
B141: Conforming capital expenditure | C141: 0 | D141: 91009.78 | E141: 285847.41 | F141: 354457.985 | G141: 50000 | H141: 0 | I141: 0 | J141: 0 | K141: 0 | L141: 0
B142: Non-conforming capital expenditure - recovered by a surcharge
B143: Non-conforming capital expenditure - added to the speculative capital expenditure account
B144: Non-conforming capital expenditure - other
B145: Capital contributions rolled into the capital base
B146: Speculative capital expenditure account rolled into the capital base
B147: Re-use of redundant assets rolled into the capital base
B148: Redundant assets rolled out of the capital base
B149: Disposals
B150: Expansion
B151: Conforming capital expenditure | G151: 0 | H151: 0 | I151: 0 | J151: 0 | K151: 0 | L151: 0
B152: Non-conforming capital expenditure - recovered by a surcharge
B153: Non-conforming capital expenditure - added to the speculative capital expenditure account
B154: Non-conforming capital expenditure - other
B155: Capital contributions rolled into the capital base
B156: Speculative capital expenditure account rolled into the capital base
B157: Re-use of redundant assets rolled into the capital base
B158: Redundant assets rolled out of the capital base
B159: Disposals
B160: Non-system
B161: Conforming capital expenditure | G161: 0 | H161: 0 | I161: 0 | J161: 0 | K161: 0 | L161: 0
B162: Non-conforming capital expenditure - recovered by a surcharge
B163: Non-conforming capital expenditure - added to the speculative capital expenditure account
B164: Non-conforming capital expenditure - other
B165: Capital contributions rolled into the capital base
B166: Speculative capital expenditure account rolled into the capital base
B167: Re-use of redundant assets rolled into the capital base
B168: Redundant assets rolled out of the capital base
B169: Disposals
B171: BUILDINGS
B172: Replacement
B173: Conforming capital expenditure | G173: 0 | H173: 0 | I173: 0 | J173: 0 | K173: 0 | L173: 0
B174: Non-conforming capital expenditure - recovered by a surcharge
B175: Non-conforming capital expenditure - added to the speculative capital expenditure account
B176: Non-conforming capital expenditure - other
B177: Capital contributions rolled into the capital base
B178: Speculative capital expenditure account rolled into the capital base
B179: Re-use of redundant assets rolled into the capital base
B180: Redundant assets rolled out of the capital base
B181: Disposals
B182: Expansion
B183: Conforming capital expenditure | G183: 0 | H183: 0 | I183: 0 | J183: 0 | K183: 0 | L183: 0
B184: Non-conforming capital expenditure - recovered by a surcharge
B185: Non-conforming capital expenditure - added to the speculative capital expenditure account
B186: Non-conforming capital expenditure - other
B187: Capital contributions rolled into the capital base
B188: Speculative capital expenditure account rolled into the capital base
B189: Re-use of redundant assets rolled into the capital base
B190: Redundant assets rolled out of the capital base
B191: Disposals
B192: Non-system
B193: Conforming capital expenditure | C193: 0 | D193: 0 | E193: 0 | F193: 0 | G193: 5104861.872 | H193: 654914.3195 | I193: 963259.4944 | J193: 963259.4944 | K193: 963259.4944 | L193: 346958.817
B194: Non-conforming capital expenditure - recovered by a surcharge
B195: Non-conforming capital expenditure - added to the speculative capital expenditure account
B196: Non-conforming capital expenditure - other
B197: Capital contributions rolled into the capital base
B198: Speculative capital expenditure account rolled into the capital base
B199: Re-use of redundant assets rolled into the capital base
B200: Redundant assets rolled out of the capital base
B201: Disposals
B203: LAND
B204: Replacement
B205: Conforming capital expenditure | G205: 0 | H205: 0 | I205: 0 | J205: 0 | K205: 0 | L205: 0
B206: Non-conforming capital expenditure - recovered by a surcharge
B207: Non-conforming capital expenditure - added to the speculative capital expenditure account
B208: Non-conforming capital expenditure - other
... 315 more rows

Sheet 7.5 Benefit sharing allowance
C1: =IF(dms_DataQuality="backcast",INDEX(dms_Worksheet_List,MATCH(dms_Model,dms_Model_List))&" BACKCAST",INDEX(dms_Worksheet_List,MATCH(dms_Model,dms_Model_List))) -> REGULATORY REPORTING STATEMENT
C2: =INDEX(dms_TradingNameFull_List,MATCH(dms_TradingName,dms_TradingName_List)) -> APA VTS Australia (Operations) Pty Ltd
C3: =IF(SUM(dms_SingleYear_Model)>0,CRY,CONCATENATE(FRCP_y1," to ",dms_MultiYear_FinalYear_Result)) -> 2018 to 2022
C4: 7.5 BENEFIT SHARING ALLOWANCE
C7: Instructions
C8: APA GasNet is required to populate all input cells (yellow) in the tables presented below. Efficiency gains are calculated using the formulae below. Adjusted target and actual amounts are used to calculate the carry-over amounts. For the first application of the scheme, the efficiency carry forward amount for the first year of the regulatory period is expressed mathematically as: E1 = F1 – A1 where A1 is the actual operating cost for year 1 and F1 is the regulatory target operating cost for that year. For savings that arose in the second to fifth year of the regulatory period, the efficiency carry forward amount is calculated as: Et = (Ft – At) – (Ft-1 – At-1), where: Et is the efficiency benefit/loss in year t; At, At-1 is the actual operating cost for the years t and t-1 respectively; and Ft, Ft-1 is the forecast operating cost for the years t and t-1 respectively Because the revenue determination will occur prior to the completion of the current period, opex for the final year will be estimated as follows: A5 = F5 – (F4 – A4)
C11: Actual and estimated inflation
D12: Actual | I12: Estimate | M12: Actual | R12: Estimate
D13: =PRCP_y4 -> 2011 | E13: =PRCP_y5 -> 2012 | F13: 2013 | G13: =CRCP_y2 -> 2014 | H13: =CRCP_y3 -> 2015 | I13: =CRCP_y4 -> 2016 | J13: =CRCP_y5 -> 2017 | M13: =PRCP_y4 -> 2011 | N13: =PRCP_y5 -> 2012 | O13: =CRCP_y1 -> 2013 | P13: =CRCP_y2 -> 2014 | Q13: =CRCP_y3 -> 2015 | R13: =CRCP_y4 -> 2016 | S13: =CRCP_y5 -> 2017
A14: ED_EBS751_00001 | C14: ABS CPI index - December (old base) | D14: 179.4 | L14: Inflation rate (per cent) | N14: =E15/D15-1 -> 0.02204408818 | O14: 0.02745098039 | P14: 0.01717557252 | Q14: 0.01688555347 | R14: 0.015 | S14: 0.02
A15: ED_EBS751_00002 | C15: ABS CPI index - December (rebased index in March 2012) | D15: 99.8 | E15: 102 | F15: 104.8 | G15: 106.6 | H15: 108.4 | I15: =H15*1.015 -> 110.026 | J15: =I15*1.02 -> 112.22652 | L15: =CONCATENATE("Cumulative index (",CRCP_y5,"=1)") -> Cumulative index (2017=1) | M15: =N15/(1+N14) -> 0.8892728742 | N15: 0.9088760838 | O15: 0.9338256234 | P15: 0.9498646131 | Q15: 0.9659036028 | R15: 0.9803921569 | S15: 1
N17: Estimate
C18: CPI used in opex forecasting model for 2013-17 | N18: 0.025
C20: =CONCATENATE("7.5.1 - The carryover amounts that arise from applying the Benefit Sharing Allowance during the ", dms_Reg_Year_Span, " regulatory control period") -> 7.5.1 - The carryover amounts that arise from applying the Benefit Sharing Allowance during the 2018 to 2022 regulatory control period
C22: 7.5.1.1 - Opex allowance applicable to Benefit Sharing Allowance (Benefit Sharing Allowance target)
D23: =CONCATENATE("$m, real ", (PRCP_y5)) -> $m, real 2012 | L23: $m, Dec 2011
D24: =PRCP_y4 -> 2011 | E24: =PRCP_y5 -> 2012 | F24: =CRCP_y1 -> 2013 | G24: =CRCP_y2 -> 2014 | H24: =CRCP_y3 -> 2015 | I24: =CRCP_y4 -> 2016 | J24: =CRCP_y5 -> 2017 | L24: =PRCP_y4 -> 2011 | M24: =PRCP_y5 -> 2012 | N24: =CRCP_y1 -> 2013 | O24: =CRCP_y2 -> 2014 | P24: =CRCP_y3 -> 2015 | Q24: =CRCP_y4 -> 2016 | R24: =CRCP_y5 -> 2017 | S24: =FRCP -> 2018 | T24: 2019 | U24: 2020 | V24: 2021 | W24: 2022
A25: ED_EBS751_00003 | C25: Total opex allowance | D25: 27.5008 | E25: 27.9352 | F25: 28.18997728 | G25: 28.68389352 | H25: 29.53356895 | I25: 30.4887745 | J25: 30.46031347 | L25: =+D25/(1+$N$18) -> 26.83004878 | M25: 27.25385366 | N25: 27.50241686 | O25: 27.98428636 | P25: 28.813238 | Q25: 29.74514586 | R25: 29.717379
A27: ED_EBS751_00008 | C27: Approved cost pass through events (clause 8.2(f)(ii)) | L27: =+D27/(1+$N$18) -> 0 | M27: 0 | N27: 0 | O27: 0 | P27: 0 | Q27: 0 | R27: 0
C28: Costs associated with extensions and expansions (clause 8.2(f)(iii)) | D28: 0 | E28: 0 | F28: 1.982017 | G28: 2.157603 | H28: 2.128793 | I28: 2.083526 | J28: 2.204195 | L28: 0 | M28: 0 | N28: 1.933675122 | O28: 2.104978537 | P28: 2.07687122 | Q28: 2.032708293 | R28: 2.150434146
A29: ED_EBS751_00011 | C29: Forecast opex for Benefit Sharing Allowance purposes | D29: =D25+SUM(D27:D28) -> 27.5008 | E29: =E25+SUM(E27:E28) -> 27.9352 | F29: 30.17199428 | G29: 30.84149652 | H29: 31.66236195 | I29: 32.5723005 | J29: 32.66450847 | L29: =+SUM(L25:L28) -> 26.83004878 | M29: =+SUM(M25:M28) -> 27.25385366 | N29: 29.43609198 | O29: 30.0892649 | P29: 30.89010922 | Q29: 31.77785415 | R29: 31.86781314
C31: 7.5.1.2 - Actual and estimated opex applicable to Benefit Sharing Allowance
D32: =CONCATENATE("$m, real ", (PRCP_y5)) -> $m, real 2012 | L32: $m, Dec 2011
D33: =PRCP_y4 -> 2011 | E33: =PRCP_y5 -> 2012 | F33: =CRCP_y1 -> 2013 | G33: =CRCP_y2 -> 2014 | H33: =CRCP_y3 -> 2015 | I33: =CRCP_y4 -> 2016 | J33: =CRCP_y5 -> 2017 | L33: =PRCP_y4 -> 2011 | M33: =PRCP_y5 -> 2012 | N33: =CRCP_y1 -> 2013 | O33: =CRCP_y2 -> 2014 | P33: =CRCP_y3 -> 2015 | Q33: =CRCP_y4 -> 2016 | R33: =CRCP_y5 -> 2017
A34: ED_EBS751_00012 | C34: Total opex (actual) | D34: 26.31781336 | E34: 26.70809815 | F34: 23.42240051 | G34: 23.60480364 | H34: 23.51126094 | I34: 22.81780382 | L34: =(D34/M$15*(1+M$14)^0.5)*$M$15 -> 26.31781336 | M34: =(E34/M$15*(1+M$14)^0.5)*$M$15 -> 26.70809815 | N34: =(F34/O$15*(1+O$14)^0.5)*M15 -> 22.60899287 | O34: =(G34/P$15*(1+P$14)^0.5)*$M$15 -> 22.28803031 | P34: =(H34/Q$15*(1+Q$14)^0.5)*$M$15 -> 21.82796353 | Q34: =(I34/R$15*(1+R$14)^0.5)*$M$15 -> 20.85172938
A36: ED_EBS751_00013 | C36: Movements in provisions | L36: =(D36/M$15*(1+M$14)^0.5)*$M$15 -> 0 | M36: =(E36/M$15*(1+M$14)^0.5)*$M$15 -> 0 | N36: =(F36/O$15*(1+O$14)^0.5)*M15 -> 0 | O36: =G36/P$15*(1+P$14)^0.5 -> 0 | P36: =H36/Q$15*(1+Q$14)^0.5 -> 0 | Q36: =I36/R$15*(1+R$14)^0.5 -> 0
A37: ED_EBS751_00021 | C37: Actual opex for Benefit Sharing Allowance purposes | D37: =+D34+SUM(D36:D36) -> 26.31781336 | E37: =+E34+SUM(E36:E36) -> 26.70809815 | F37: 23.42240051 | G37: 23.60480364 | H37: 23.51126094 | I37: 22.81780382 | L37: =L34+SUM(L36:L36) -> 26.31781336 | M37: =M34+SUM(M36:M36) -> 26.70809815 | N37: 22.60899287 | O37: 22.28803031 | P37: 21.82796353 | Q37: 20.85172938 | R37: =+Q37+R29-Q29 -> 20.94168837
L39: Incremental gain $m, Dec 2011
N40: =(N29-N37)-(M29-M37)+(L29-L37) -> 6.793579017 | O40: =(O29-O37)-(N29-N37) -> 0.9741354799 | P40: =(P29-P37)-(O29-O37) -> 1.260911104 | Q40: =(Q29-Q37)-(P29-P37) -> 1.86397908 | R40: =(R29-R37)-(Q29-Q37) -> 0
L42: Carryover | N42: $m, real Dec 2011 | X42: Total
L43: =CRCP_y1 -> 2013 | O43: =$N$40/2 -> 3.396789508 | P43: =$N$40/2 -> 3.396789508 | Q43: 3.396789508 | R43: 3.396789508 | S43: 3.396789508
L44: =CRCP_y2 -> 2014 | P44: =$O$40 -> 0.9741354799 | Q44: =$O$40 -> 0.9741354799 | R44: =$O$40 -> 0.9741354799 | S44: =$O$40 -> 0.9741354799 | T44: =$O$40 -> 0.9741354799
L45: =CRCP_y3 -> 2015 | Q45: =$P$40 -> 1.260911104 | R45: =$P$40 -> 1.260911104 | S45: =$P$40 -> 1.260911104 | T45: =$P$40 -> 1.260911104 | U45: =$P$40 -> 1.260911104
L46: =CRCP_y4 -> 2016 | R46: =$Q$40 -> 1.86397908 | S46: =$Q$40 -> 1.86397908 | T46: =$Q$40 -> 1.86397908 | U46: =$Q$40 -> 1.86397908 | V46: =$Q$40 -> 1.86397908
L47: =CRCP_y5 -> 2017 | S47: =+$R$40 -> 0 | T47: =+$R$40 -> 0 | U47: =+$R$40 -> 0 | V47: =+$R$40 -> 0 | W47: =+$R$40 -> 0
L48: Total Carryover Amount ($million, 2015-16) | S48: =+SUM(S43:S47) -> 7.495815173 | T48: =+SUM(T43:T47) -> 4.099025664 | U48: =+SUM(U43:U47) -> 3.124890184 | V48: =+SUM(V43:V47) -> 1.86397908 | W48: =+SUM(W43:W47) -> 0 | X48: =+SUM(S48:W48) -> 16.5837101
N49: $m, real Dec 2017
L50: PTRM inputs ($m, Dec 2017) | S50: =S48/$M$15 -> 8.429150815 | T50: =T48/$M$15 -> 4.609412682 | U50: =U48/$M$15 -> 3.513983474 | V50: =V48/$M$15 -> 2.096070997 | W50: =W48/$M$15 -> 0 | X50: =+SUM(S50:W50) -> 18.64861797
C53: 7.5.2 - Proposed forecast opex for the Benefit Sharing Allowance for the forthcoming regulatory control period
D54: =CONCATENATE("$m, real ", dms_DollarReal) -> $m, real December 2017
A55: ED_EBS752_00001 | D55: =FRCP -> 2018 | E55: 2019 | F55: 2020 | G55: 2021 | H55: 2022 | I55: Total
C56: Forecast opex ($million, 2017) | D56: 25.65234964 | E56: 25.83546873 | F56: 25.89610283 | G56: 26.77593122 | H56: 27.00390662 | I56: =+SUM(D56:H56) -> 131.163759
A57: ED_EBS752_00002 | C57: Less excluded costs
A58: ED_EBS752_00003 | C58: Approved cost pass through events (clause 8.2(f)(ii)) | D58: 0 | E58: 0 | F58: 0 | G58: 0 | H58: 0 | I58: =+SUM(D58:H58) -> 0
A59: ED_EBS752_00004 | C59: Costs associated with extensions and expansions (clause 8.2(f)(iii)) | D59: 0.276101175 | E59: 0.3657018821 | F59: 0.3657018821 | G59: 0.4115760821 | H59: 0.4115760821 | I59: 1.830657104
A60: ED_EBS752_00005 | C60: Allowances | D60: 2.354585233 | E60: 2.448103609 | F60: 2.508737709 | G60: 2.555339843 | H60: 2.592357841 | I60: 12.45912424
A61: ED_EBS752_99999 | C61: Debt Raising Costs | D61: 0.06030477663 | E61: 0.06217346014 | F61: 0.06229883901 | G61: 0.06137617109 | H61: 0.05999176893 | I61: 0.3061450158
C62: Equity Raising costs | D62: 0 | E62: 0 | F62: 0 | G62: 0 | H62: 0
C63: Adjusted forecast opex ($million, 2015-16) | D63: =+D56-SUM(D58:D61) -> 22.96135846 | E63: 22.95948977 | F63: 22.9593644 | G63: 23.74763912 | H63: 23.93998093 | I63: 116.5678327

Sheet 8. Revenue
B1: REGULATORY REPORTING STATEMENT
B2: =INDEX(dms_TradingNameFull_List,MATCH(dms_TradingName,dms_TradingName_List)) -> APA VTS Australia (Operations) Pty Ltd
B3: =IF(SUM(dms_SingleYear_Model)>0,CRY,CONCATENATE(FRCP_y1," to ",dms_MultiYear_FinalYear_Result)) -> 2018 to 2022
B4: 8. REVENUE
B7: 8.1 - REVENUE GROUPING BY SERVICE TYPE
C8: Actual | L8: Forecast
C9: =PRCP_y1 -> 2008 | D9: =PRCP_y2 -> 2009 | E9: =PRCP_y3 -> 2010 | F9: =PRCP_y4 -> 2011 | G9: =PRCP_y5 -> 2012 | H9: 1 January to 30 June 2013 | I9: 1 July to 31 December 2013 | J9: =CRCP_y2 -> 2014 | K9: =CRCP_y3 -> 2015 | L9: =CRCP_y4 -> 2016 | M9: =CRCP_y5 -> 2017
B10: Revenue from ancillary reference services
B11: Revenue from haulage reference services | C11: 114.2 | D11: 110.8 | E11: 115.8 | F11: 122.1 | G11: 131.5 | H11: 64.6 | I11: 55.1 | J11: 95.82 | K11: 105.39 | L11: 108.86 | M11: 103.2
B12: Total | C12: =SUM(C10:C11) -> 114.2 | D12: =SUM(D10:D11) -> 110.8 | E12: 115.8 | F12: 122.1 | G12: 131.5 | H12: =SUM(H10:H11) -> 64.6 | I12: 55.1 | J12: 95.82 | K12: 105.39 | L12: 108.86 | M12: 103.2

Sheet 11 - User No.
B1: REGULATORY REPORTING STATEMENT
B2: APA GasNet Australia (Operations) Pty Ltd
B3: 2018 to 2022
B4: 11. User Numbers
B7: Instructions
B8: For each zone enter the number of users for each year into the yellow cells. This may require the insertion of new lines in the table.
B12: Unit used in this sheet | C12: No.
B14: Table 11.1 User numbers – by zone
C15: Actual | F15: Forecast
C16: 2013 | D16: 2014 | E16: 2015 | F16: 2016 | G16: 2017 | H16: 2018 | I16: 2019 | J16: 2020 | K16: 2021 | L16: 2022 | M16: 2023 | N16: 2024 | O16: 2025 | P16: 2026 | Q16: 2027
B17: LaTrobe | C17: 12 | D17: 12 | E17: 14 | F17: 14 | G17: 14 | H17: =+G17 -> 14 | I17: =+H17 -> 14 | J17: 14 | K17: 14 | L17: 14
B18: West Gippsland | C18: 0 | D18: 0 | E18: 0 | F18: 0 | G18: 0 | H18: =+G18 -> 0 | I18: 0 | J18: 0 | K18: 0 | L18: 0
B19: Lurgi | C19: 10 | D19: 12 | E19: 12 | F19: 12 | G19: 12 | H19: 12 | I19: 12 | J19: 12 | K19: 12 | L19: 12
B20: Metro North West | C20: 14 | D20: 13 | E20: 14 | F20: 14 | G20: 14 | H20: 14 | I20: 14 | J20: 14 | K20: 14 | L20: 14
B21: Calder | C21: 9 | D21: 11 | E21: 11 | F21: 12 | G21: 12 | H21: 12 | I21: 12 | J21: 12 | K21: 12 | L21: 12
B22: South Hume | C22: 10 | D22: 11 | E22: 12 | F22: 13 | G22: 13 | H22: 13 | I22: 13 | J22: 13 | K22: 13 | L22: 13
B23: Echuca | C23: 10 | D23: 11 | E23: 11 | F23: 11 | G23: 11 | H23: 11 | I23: 11 | J23: 11 | K23: 11 | L23: 11
B24: North Hume | C24: 10 | D24: 10 | E24: 12 | F24: 13 | G24: 13 | H24: 13 | I24: 13 | J24: 13 | K24: 13 | L24: 13
B25: Western | C25: 9 | D25: 9 | E25: 10 | F25: 10 | G25: 10 | H25: 10 | I25: 10 | J25: 10 | K25: 10 | L25: 10
B26: Murray Valley | C26: 9 | D26: 10 | E26: 11 | F26: 11 | G26: 11 | H26: 11 | I26: 11 | J26: 11 | K26: 11 | L26: 11
B27: Interconnect | C27: 1 | D27: 1 | E27: 1 | F27: 1 | G27: 1 | H27: 1 | I27: 1 | J27: 1 | K27: 1 | L27: 1
B28: South West | C28: 9 | D28: 9 | E28: 10 | F28: 11 | G28: 11 | H28: 11 | I28: 11 | J28: 11 | K28: 11 | L28: 11
B29: Wodonga | C29: 11 | D29: 12 | E29: 13 | F29: 13 | G29: 13 | H29: 13 | I29: 13 | J29: 13 | K29: 13 | L29: 13
B30: Tyers | C30: 10 | D30: 11 | E30: 11 | F30: 11 | G30: 11 | H30: 11 | I30: 11 | J30: 11 | K30: 11 | L30: 11
B31: NSW Transfers | C31: 6 | D31: 7 | E31: 6 | F31: 6 | G31: 7 | H31: 7 | I31: 7 | J31: 7 | K31: 7 | L31: 7
B32: Metro South East | C32: 13 | D32: 12 | E32: 14 | F32: 14 | G32: 15 | H32: 15 | I32: 15 | J32: 15 | K32: 15 | L32: 15
B33: Warrnambool | C33: 9 | D33: 10 | E33: 10 | F33: 10 | G33: 10 | H33: 10 | I33: 10 | J33: 10 | K33: 10 | L33: 10
B34: Koroit | C34: 9 | D34: 9 | E34: 10 | F34: 10 | G34: 10 | H34: =+G34 -> 10 | I34: 10 | J34: 10 | K34: 10 | L34: 10
B35: Refill LNG | C35: 5 | D35: 3 | E35: 4 | F35: 7 | G35: 7 | H35: 7 | I35: 7 | J35: 7 | K35: 7 | L35: 7
B36: Geelong | C36: 12 | D36: 11 | E36: 13 | F36: 13 | G36: 13 | H36: 13 | I36: 13 | J36: 13 | K36: 13 | L36: 13
B37: Maryvale | C37: 1 | D37: 1 | E37: 1 | F37: 1 | G37: 1 | H37: 1 | I37: 1 | J37: 1 | K37: 1 | L37: 1
B38: VicHub | C38: 6 | D38: 7 | E38: 7 | F38: 4 | G38: 4 | H38: 4 | I38: 4 | J38: 4 | K38: 4 | L38: 4
B39: Refill WUGS | C39: 7 | D39: 7 | E39: 7 | F39: 7 | G39: 7 | H39: 7 | I39: 7 | J39: 7 | K39: 7 | L39: 7
B40: SEAGas | C40: 3 | D40: 2 | E40: 1 | F40: 2 | G40: 2 | H40: 2 | I40: 2 | J40: 2 | K40: 2 | L40: 2
B41: Otway Gas | C41: 0 | D41: 0 | E41: 0 | F41: 0 | G41: 0 | H41: 0 | I41: 0 | J41: 0 | K41: 0 | L41: 0
B56: Total number of users | C56: 23 | D56: 23 | E56: 23 | F56: 21 | G56: 23 | H56: =+G56 -> 23 | I56: =+H56 -> 23 | J56: 23 | K56: 23 | L56: 23

Sheet 12. Demand
B1: REGULATORY REPORTING STATEMENT
B2: APA VTS Australia (Operations) Pty Ltd
B3: 2018 to 2022
B4: 12. DEMAND
B7: Instructions
B8: For each inject or withdrawal point, replace the temporary title (e..g, 'withdrawal point A') with the correct title and then enter the required details into the yellow cells. This may require the insertion of new lines in each table.
B10: 12.1 Withdrawals – Peak Volume – by location
C11: Actual TJ/D | F11: Forecast TJ/day
C12: 2013 | D12: 2014 | E12: 2015 | F12: 2016 | G12: 2017 | H12: 2018 | I12: 2019 | J12: 2020 | K12: 2021 | L12: 2022 | M12: 2023 | N12: 2024 | O12: 2025 | P12: 2026 | Q12: 2027
B13: Exports Culcairn
B14: minimum withdrawals | C14: =1331.85/1000 -> 1.33185 | D14: 0 | E14: 0 | F14: =3206.28/1000 -> 3.20628 | G14: 0 | H14: 0 | I14: 0 | J14: 0 | K14: 0 | L14: 0
B15: maximum withdrawals | C15: =83020.51/1000 -> 83.02051 | D15: =85336.44/1000 -> 85.33644 | E15: =118999.15/1000 -> 118.99915 | F15: =128412.82/1000 -> 128.41282 | G15: =AVERAGE($C15:$F15)/AVERAGE($C16:$F16)*G16 -> 186.4156141 | H15: =AVERAGE($C15:$F15)/AVERAGE($C16:$F16)*H16 -> 186.4156141 | I15: 186.4156141 | J15: 186.4156141 | K15: 186.4156141 | L15: 186.4156141
B16: average withdrawals | C16: =49325.87/1000 -> 49.32587 | D16: =26956.87/1000 -> 26.95687 | E16: =38853.58/1000 -> 38.85358 | F16: =62068.23/1000 -> 62.06823 | G16: =29000/365 -> 79.45205479 | H16: =29000/365 -> 79.45205479 | I16: =29000/365 -> 79.45205479 | J16: 79.45205479 | K16: 79.45205479 | L16: 79.45205479
B17: Exports VicHub
B18: minimum withdrawals | C18: 0 | D18: 0 | E18: 0 | F18: 0 | G18: 0 | H18: 0 | I18: 0 | J18: 0 | K18: 0 | L18: 0
B19: maximum withdrawals | C19: =35065/1000 -> 35.065 | D19: =26161.78/1000 -> 26.16178 | E19: =25015.43/1000 -> 25.01543 | F19: =26000.01/1000 -> 26.00001 | G19: =AVERAGE($C19:$F19)/AVERAGE($C20:$F20)*G20 -> 28.060555 | H19: =AVERAGE($C19:$F19)/AVERAGE($C20:$F20)*H20 -> 28.060555 | I19: 28.060555 | J19: 28.060555 | K19: 28.060555 | L19: 28.060555
B20: average withdrawals | C20: =8353.26/1000 -> 8.35326 | D20: =5653.28/1000 -> 5.65328 | E20: =5238.05/1000 -> 5.23805 | F20: =5734/1000 -> 5.734 | G20: =AVERAGE($C$20:$F$20) -> 6.2446475 | H20: =AVERAGE($C$20:$F$20) -> 6.2446475 | I20: 6.2446475 | J20: 6.2446475 | K20: 6.2446475 | L20: 6.2446475
B21: Exports Port Campbell
B22: minimum withdrawals | C22: 0 | D22: 0 | E22: 0 | F22: 0 | G22: 0 | H22: 0 | I22: 0 | J22: 0 | K22: 0 | L22: 0
B23: maximum withdrawals | C23: 111.79 | D23: 120.36 | E23: 128.84 | F23: 141.93 | G23: =AVERAGE($C23:$F23)/AVERAGE($C24:$F24)*G24 -> 125.73 | H23: =AVERAGE($C23:$F23)/AVERAGE($C24:$F24)*H24 -> 125.73 | I23: 125.73 | J23: 125.73 | K23: 125.73 | L23: 125.73
B24: average withdrawals | C24: 58.7 | D24: 42.66 | E24: 41.195 | F24: 60.16 | G24: =AVERAGE($C$24:$F$24) -> 50.67875 | H24: =AVERAGE($C$24:$F$24) -> 50.67875 | I24: 50.67875 | J24: 50.67875 | K24: 50.67875 | L24: 50.67875
B25: GPG
B26: minimum withdrawals | C26: =0.08/1000 -> 8e-05 | D26: 0 | E26: =4.51/1000 -> 0.00451 | F26: =0.59/1000 -> 0.00059 | H26: 0 | I26: 0 | J26: 0 | K26: 0 | L26: 0
B27: maximum withdrawals | C27: =115931.1/1000 -> 115.9311 | D27: =189696.29/1000 -> 189.69629 | E27: =124800.75/1000 -> 124.80075 | F27: =177219.75/1000 -> 177.21975 | G27: 8.284434185 | H27: 8.264 | I27: 5.2683 | J27: 7.258090414 | K27: 8.645919093 | L27: 14.00991865
B28: average withdrawals | C28: =7179.46/1000 -> 7.17946 | D28: =11031.38/1000 -> 11.03138 | E28: =8647.49/1000 -> 8.64749 | F28: =12996.21/1000 -> 12.99621 | G28: =15.61*1000/365 -> 42.76712329 | H28: =5.27*1000/365 -> 14.43835616 | I28: =1.79*1000/365 -> 4.904109589 | J28: =1.88*1000/365 -> 5.150684932 | K28: =0.59*1000/365 -> 1.616438356 | L28: =0.8*1000/365 -> 2.191780822
B30: 12.2 Withdrawals – Annual Volume
C31: Actual TJ | F31: Forecast TJ
C32: 2013 | D32: 2014 | E32: 2015 | F32: 2016 | G32: 2017 | H32: 2018 | I32: 2019 | J32: 2020 | K32: 2021 | L32: 2022 | M32: 2023 | N32: 2024 | O32: 2025 | P32: 2026 | Q32: 2027
B33: Annual withdrawals (excluding GPG)
B34: Forecast | C34: =C39-C36 -> 209332.873 | D34: =D39-D36 -> 207260.195 | E34: 212666.7371 | F34: 212076.6665 | G34: 211080.3025 | H34: =+H39-(H28*365) -> 209964.3675 | I34: =+I39-(I28*365) -> 207889.7956 | J34: 205562.9108 | K34: 204710.0443 | L34: 202874.4815 | M34: =M40-M37 -> 0 | N34: 0 | O34: 0 | P34: 0 | Q34: 0
B35: Actual | C35: =C40-C37 -> 220694.5882 | D35: 205580.5859 | E35: 221887.3688 | F35: =F40-F37 -> 223140.0793
B36: Forecast GPG | G36: 15610 | H36: 5270 | I36: 1790 | J36: 1880 | K36: 590 | L36: 800
B37: Actual GPG
B38: Annual withdrawals (including GPG)
B39: Forecast | C39: 209332.873 | D39: 207260.195 | E39: 212666.7371 | F39: 212076.6665 | G39: 226690.3025 | H39: 215234.3675 | I39: 209679.7956 | J39: 207442.9108 | K39: 205300.0443 | L39: 203674.4815
B40: Actual | C40: =220694588.16/1000 -> 220694.5882 | D40: =205580585.85/1000 -> 205580.5859 | E40: =221887368.78/1000 -> 221887.3688 | F40: =(198516156.5+12696087.18+11927835.63)/1000 -> 223140.0793
B41: Effective Degree Day
B42: Forecast | C42: 1309 | D42: 1309 | E42: 1309 | F42: 1309 | G42: 1309 | H42: 1340 | I42: 1340 | J42: 1340 | K42: 1340 | L42: 1340
B43: Actual | C43: 1242.4 | D43: 1163.4 | E43: 1471.6 | F43: 1309
B45: 12.3 Injections – Peak Volume – by source
C46: Actual TJ | F46: Forecast TJ/day
C47: 2013 | D47: 2014 | E47: 2015 | F47: 2016 | G47: 2017 | H47: 2018 | I47: 2019 | J47: 2020 | K47: 2021 | L47: 2022 | M47: 2023 | N47: 2024 | O47: 2025 | P47: 2026 | Q47: 2027
B48: Longford (including VICHub)
B49: minimum injections | C49: =159106.2221/1000 -> 159.1062221 | D49: =186869.519/1000 -> 186.869519 | E49: =144543.61/1000 -> 144.54361 | F49: =225967.4757/1000 -> 225.9674757 | G49: =AVERAGE($C49:$F49)/AVERAGE($C51:$F51)*G51 -> 182.1985242 | H49: =AVERAGE($C49:$F49)/AVERAGE($C51:$F51)*H51 -> 172.9733316 | I49: 168.5005535 | J49: 166.7029729 | K49: 164.9809463 | L49: 163.6746295
B50: maximum injections | C50: =817712.4208/1000 -> 817.7124208 | D50: =789854.741/1000 -> 789.854741 | E50: =790657.18/1000 -> 790.65718 | F50: =861623.0083/1000 -> 861.6230083 | G50: 669.5942632 | H50: 661.4415844 | I50: 649.5444584 | J50: 640.6777169 | K50: 634.2112051 | L50: 631.1014121
B51: average injectionls | C51: =459860.73/1000 -> 459.86073 | D51: =435827.61/1000 -> 435.82761 | E51: =466334.68/1000 -> 466.33468 | F51: =578586.57/1000 -> 578.58657 | G51: =+G69/365 -> 493.4859792 | H51: =+H69/365 -> 468.4994804 | I51: 456.3849296 | J51: 451.5161701 | K51: 446.8520489 | L51: 443.3138807
B52: Pakenham
B53: minimum injections | C53: =1065.384171/1000 -> 1.065384171 | D53: =1202.641607/1000 -> 1.202641607 | E53: =1973.89/1000 -> 1.97389 | F53: =2215.63/1000 -> 2.21563 | G53: =AVERAGE($C53:$F53)/AVERAGE($C55:$F55)*G55 -> 1.714216237 | H53: =AVERAGE($C53:$F53)/AVERAGE($C55:$F55)*H55 -> 1.627420941 | I53: 1.585338773 | J53: 1.568426222 | K53: 1.552224521 | L53: 1.53993403
B54: maximum injections | C54: =66759.21257/1000 -> 66.75921257 | D54: =49743.29628/1000 -> 49.74329628 | E54: =63747.58/1000 -> 63.74758 | F54: =57753.87/1000 -> 57.75387 | G54: 57.75387 | H54: 57.75387 | I54: 57.75387 | J54: 57.75387 | K54: 57.75387 | L54: 57.75387
B55: average injectionls | C55: =46543.94/1000 -> 46.54394 | D55: =38003.645/1000 -> 38.003645 | E55: =41067.98/1000 -> 41.06798 | F55: =49239.45/1000 -> 49.23945 | G55: =+G72/365 -> 46.41690763 | H55: =+H72/365 -> 44.06669697 | I55: 42.92721174 | J55: 42.46926001 | K55: 42.03055639 | L55: 41.69775905
B56: Port Campbell (Iona and SEAGas facilities)
B57: minimum injections | C57: =25049.92608/1000 -> 25.04992608 | D57: 0 | E57: =37.41/1000 -> 0.03741 | F57: =1/1000 -> 0.001 | G57: 0 | H57: 0 | I57: 0 | J57: 0 | K57: 0 | L57: 0
B58: maximum injections | C58: =349363.1694/1000 -> 349.3631694 | D58: =351604.4/1000 -> 351.6044 | E58: =396315.06/1000 -> 396.31506 | F58: =341943.2/1000 -> 341.9432 | G58: 429 | H58: 429 | I58: 429 | J58: 429 | K58: 429 | L58: 429
B59: average injectionls | C59: =154302.16/1000 -> 154.30216 | D59: =120793.92/1000 -> 120.79392 | E59: =134533.17/1000 -> 134.53317 | F59: =81120.153/1000 -> 81.120153 | G59: =+G75/365 -> 71.53887056 | H59: =+H75/365 -> 67.91666854 | I59: 66.16046611 | J59: 65.45465972 | K59: 64.778519 | L59: 64.26560361
B60: Culcairn
B61: minimum injections | C61: 0 | D61: 0 | E61: 0 | F61: 0 | G61: 0 | H61: 0 | I61: 0 | J61: 0 | K61: 0 | L61: 0
B62: maximum injections | C62: =16267.28738/1000 -> 16.26728738 | D62: =84700.3353/1000 -> 84.7003353 | E62: =60012.69/1000 -> 60.01269 | F62: =65970.82/1000 -> 65.97082 | G62: 65.97082 | H62: 65.97082 | I62: 65.97082 | J62: 65.97082 | K62: 65.97082 | L62: 65.97082
B63: average injectionls | C63: =577.74/1000 -> 0.57774 | D63: =11156.46/1000 -> 11.15646 | E63: =8665.26/1000 -> 8.66526 | F63: =7968.29/1000 -> 7.96829 | G63: =+G78/365 -> 6.968899592 | H63: =+H78/365 -> 6.616045794 | I63: 6.444966794 | J63: 6.376211252 | K63: 6.310345566 | L63: 6.26038034
B65: 12.4 Injections – Annual Volume
C66: Actual TJ | F66: Forecast TJ
C67: 2013 | D67: 2014 | E67: 2015 | F67: 2016 | G67: 2017 | H67: 2018 | I67: 2019 | J67: 2020 | K67: 2021 | L67: 2022 | M67: 2023 | N67: 2024 | O67: 2025 | P67: 2026 | Q67: 2027
B68: Longford (including VICHub)
B69: Forecast | G69: 180122.3824 | H69: 171002.3103 | I69: 166580.4993 | J69: 164803.4021 | K69: 163100.9978 | L69: 161809.5665
B70: Actual | C70: =167849165.3/1000 -> 167849.1653 | D70: =159077078/1000 -> 159077.078 | E70: =170212157.71/1000 -> 170212.1577 | F70: =(176468903.8+10887424.62+9133270.74)/1000 -> 196489.5992
B71: Pakenham
B72: Forecast | G72: 16942.17129 | H72: 16084.34439 | I72: 15668.43229 | J72: 15501.2799 | K72: 15341.15308 | L72: 15219.68205
B73: Actual | C73: =16988537.18/1000 -> 16988.53718 | D73: =13871330.52/1000 -> 13871.33052 | E73: =14989812.68/1000 -> 14989.81268 | F73: =(15018031.21+1739508.87+1724118.89)/1000 -> 18481.65897
B74: Port Campbell (Iona and SEAGas facilities)
B75: Forecast | G75: 26111.68775 | H75: 24789.58402 | I75: 24148.57013 | J75: 23890.9508 | K75: 23644.15944 | L75: 23456.94532
B76: Actual | C76: =56320290.9/1000 -> 56320.2909 | D76: =44089780/1000 -> 44089.78 | E76: =49104606.65/1000 -> 49104.60665 | F76: =(24741641.3832+939966.46+2802775.89)/1000 -> 28484.38373
B77: Culcairn
B78: Forecast | G78: 2543.648351 | H78: 2414.856715 | I78: 2352.41288 | J78: 2327.317107 | K78: 2303.276132 | L78: 2285.038824
B79: Actual | C79: =210875.9967/1000 -> 210.8759967 | D79: =4072108.514/1000 -> 4072.108514 | E79: =3162820.9/1000 -> 3162.8209 | F79: =(2430328.507+128482.37+215971.68)/1000 -> 2774.782557

Sheet 13. Pipeline capacity
B1: REGULATORY REPORTING STATEMENT
B2: APA VTS Australia (Operations) Pty Ltd
B3: 2018 to 2022
B4: 13. PIPELINE CAPACITY
B7: For each pipeline, replace the temporary title (e..g, 'Pipeline A') with the correct title and then enter the required details into the yellow cells. This may require the insertion of new lines in each table.
B10: 13.1 Pipeline capacity - by pipeline
C11: Actual (TJ/day) | F11: Forecast (TJ/day)
C12: 2013 | D12: 2014 | E12: 2015 | F12: 2016 | G12: 2017 | H12: 2018 | I12: 2019 | J12: 2020 | K12: 2021 | L12: 2022 | M12: 2023 | N12: 2024 | O12: 2025 | P12: 2026 | Q12: 2027
B13: Pipeline capacity
B14: Longford to Melbourne | C14: 1030 | D14: 1030 | E14: 1030 | F14: 1030 | G14: 1030 | H14: 1030 | I14: 1030 | J14: 1030 | K14: 1030 | L14: 1030 | M14: 1030 | N14: 1030 | O14: 1030 | P14: 1030 | Q14: 1030
B15: South West Pipeline (from Iona) | C15: 353 | D15: 353 | E15: 429 | F15: 429 | G15: 429 | H15: 429 | I15: 429 | J15: 429 | K15: 429 | L15: 429 | M15: 429 | N15: 429 | O15: 429 | P15: 429 | Q15: 429
B16: South West Pipeline (to Iona) | C16: 92 | D16: 92 | E16: 92 | F16: 102 | G16: 102 | H16: 102 | I16: 150 | J16: 150 | K16: 150 | L16: 150 | M16: 150 | N16: 150 | O16: 150 | P16: 150 | Q16: 150
B17: Western Transmission System | C17: 28 | D17: 28 | E17: 28 | F17: 28 | G17: 28 | H17: 28 | I17: 28 | J17: 28 | K17: 28 | L17: 28 | M17: 28 | N17: 28 | O17: 28 | P17: 28 | Q17: 28
B18: New South Wales Interconnect (to Vic) | C18: 120 | D18: 120 | E18: 125 | F18: 125 | G18: 125 | H18: 125 | I18: 125 | J18: 125 | K18: 125 | L18: 125 | M18: 125 | N18: 125 | O18: 125 | P18: 125 | Q18: 125
B19: New South Wales Interconnect (from Vic (summer)) | C19: 83 | D19: 83 | E19: 126 | F19: 148 | G19: 201 | H19: 201 | I19: 201 | J19: 201 | K19: 201 | L19: 201 | M19: 201 | N19: 201 | O19: 201 | P19: 201 | Q19: 201
B20: New South Wales Interconnect (from Vic (winter)) | C20: 46 | D20: 57 | E20: 57 | F20: 118 | G20: 201 | H20: 201 | I20: 201 | J20: 201 | K20: 201 | L20: 201 | M20: 201 | N20: 201 | O20: 201 | P20: 201 | Q20: 201
B22: 13.2 Average utilisation - by pipeline
C23: Actual (%) | F23: Forecast (%)
C24: 2013 | D24: 2014 | E24: 2015 | F24: 2016 | G24: 2017 | H24: 2018 | I24: 2019 | J24: 2020 | K24: 2021 | L24: 2022 | M24: 2023 | N24: 2024 | O24: 2025 | P24: 2026 | Q24: 2027
B25: Average utilisation
B26: Longford to Melbourne | C26: ='12. Demand'!C51/C14 -> 0.4464667282 | D26: ='12. Demand'!D51/D14 -> 0.4231336019 | E26: ='12. Demand'!E51/E14 -> 0.4527521165 | F26: ='12. Demand'!F51/F14 -> 0.561734534 | G26: ='12. Demand'!G51/G14 -> 0.4791126012 | H26: ='12. Demand'!H51/H14 -> 0.4548538644 | I26: ='12. Demand'!I51/I14 -> 0.4430921647 | J26: ='12. Demand'!J51/J14 -> 0.4383652137 | K26: ='12. Demand'!K51/K14 -> 0.4338369407 | L26: ='12. Demand'!L51/L14 -> 0.430401826 | M26: n/a | N26: n/a | O26: n/a | P26: n/a | Q26: n/a
B27: South West Pipeline (from Iona) | C27: ='12. Demand'!C59/C15 -> 0.4371166006 | D27: ='12. Demand'!D59/D15 -> 0.3421924079 | E27: ='12. Demand'!E59/E15 -> 0.3135971329 | F27: ='12. Demand'!F59/F15 -> 0.1890912657 | G27: ='12. Demand'!G59/G15 -> 0.166757274 | H27: ='12. Demand'!H59/H15 -> 0.1583139127 | I27: ='12. Demand'!I59/I15 -> 0.1542202007 | J27: ='12. Demand'!J59/J15 -> 0.1525749644 | K27: ='12. Demand'!K59/K15 -> 0.1509988788 | L27: ='12. Demand'!L59/L15 -> 0.1498032718 | M27: n/a | N27: n/a | O27: n/a | P27: n/a | Q27: n/a
B28: South West Pipeline (to Iona) | C28: 0.285 | D28: 0.2963043478 | E28: 0.3314673913 | F28: 0.2084313725 | G28: =G56/G16 -> 0.2579289216 | H28: =H56/H16 -> 0.2579289216 | I28: 0.1753916667 | J28: 0.1753916667 | K28: 0.1753916667 | L28: 0.1753916667 | M28: n/a | N28: n/a | O28: n/a | P28: n/a | Q28: n/a
B29: Western Transmission System | C29: 0.4201767857 | D29: 0.4456467857 | E29: 0.4511260714 | F29: 0.4367446429 | G29: 0.4113129553 | H29: 0.3594723049 | I29: 0.353808552 | J29: 0.3470739709 | K29: 0.3445552993 | L29: 0.3410216438 | M29: n/a | N29: n/a | O29: n/a | P29: n/a | Q29: n/a
B30: New South Wales Interconnect (to Vic) | C30: ='12. Demand'!C63/'13. Pipeline capacity'!C18 -> 0.0048145 | D30: ='12. Demand'!D63/'13. Pipeline capacity'!D18 -> 0.0929705 | E30: ='12. Demand'!E63/'13. Pipeline capacity'!E18 -> 0.06932208 | F30: ='12. Demand'!F63/'13. Pipeline capacity'!F18 -> 0.06374632 | G30: ='12. Demand'!G63/'13. Pipeline capacity'!G18 -> 0.05575119673 | H30: ='12. Demand'!H63/'13. Pipeline capacity'!H18 -> 0.05292836635 | I30: ='12. Demand'!I63/'13. Pipeline capacity'!I18 -> 0.05155973435 | J30: ='12. Demand'!J63/'13. Pipeline capacity'!J18 -> 0.05100969001 | K30: ='12. Demand'!K63/'13. Pipeline capacity'!K18 -> 0.05048276453 | L30: ='12. Demand'!L63/'13. Pipeline capacity'!L18 -> 0.05008304272 | M30: n/a | N30: n/a | O30: n/a | P30: n/a | Q30: n/a
B31: New South Wales Interconnect (from Vic (summer)) | C31: 0.6102461446 | D31: 0.3832403614 | E31: 0.2659193651 | F31: 0.4888281757 | G31: 0.3952838547 | H31: 0.3952838547 | I31: 0.3952838547 | J31: 0.3952838547 | K31: 0.3952838547 | L31: 0.3952838547 | M31: n/a | N31: n/a | O31: n/a | P31: n/a | Q31: n/a
B32: New South Wales Interconnect (from Vic (winter)) | C32: 1.043976087 | D32: 0.3891912281 | E32: 0.7739321053 | F32: 0.4687212712 | G32: 0 | H32: 0 | I32: 0 | J32: 0 | K32: 0 | L32: 0 | M32: n/a | N32: n/a | O32: n/a | P32: n/a | Q32: n/a
B34: 13.3 Peak utilisation - by pipeline
C35: Actual (%) | F35: Forecast (%)
C36: 2013 | D36: 2014 | E36: 2015 | F36: 2016 | G36: 2017 | H36: 2018 | I36: 2019 | J36: 2020 | K36: 2021 | L36: 2022 | M36: 2023 | N36: 2024 | O36: 2025 | P36: 2026 | Q36: 2027
B37: Peak utilisation
B38: Longford to Melbourne | C38: ='12. Demand'!C50/C14 -> 0.7938955542 | D38: ='12. Demand'!D50/D14 -> 0.7668492631 | E38: ='12. Demand'!E50/E14 -> 0.7676283301 | F38: ='12. Demand'!F50/F14 -> 0.8365271925 | G38: ='12. Demand'!G50/G14 -> 0.6500915177 | H38: ='12. Demand'!H50/H14 -> 0.6421762956 | I38: ='12. Demand'!I50/I14 -> 0.6306256878 | J38: ='12. Demand'!J50/J14 -> 0.6220172009 | K38: ='12. Demand'!K50/K14 -> 0.6157390341 | L38: ='12. Demand'!L50/L14 -> 0.6127198176 | M38: n/a | N38: n/a | O38: n/a | P38: n/a | Q38: n/a
B39: South West Pipeline (from Iona) | C39: ='12. Demand'!C58/C15 -> 0.9896973637 | D39: ='12. Demand'!D58/D15 -> 0.9960464589 | E39: ='12. Demand'!E58/E15 -> 0.9238113287 | F39: ='12. Demand'!F58/F15 -> 0.7970703963 | G39: ='12. Demand'!G58/G15 -> 1 | H39: ='12. Demand'!H58/H15 -> 1 | I39: ='12. Demand'!I58/I15 -> 1 | J39: ='12. Demand'!J58/J15 -> 1 | K39: ='12. Demand'!K58/K15 -> 1 | L39: ='12. Demand'!L58/L15 -> 1 | M39: n/a | N39: n/a | O39: n/a | P39: n/a | Q39: n/a
B40: South West Pipeline (to Iona) | C40: 1.072826087 | D40: 1.145652174 | E40: 0.9913043478 | F40: 1.019607843 | G40: =G55/G16 -> 0.9786764706 | H40: =H55/H16 -> 0.9786764706 | I40: 0.9786764706 | J40: 0.9786764706 | K40: 0.9786764706 | L40: 0.9786764706 | M40: n/a | N40: n/a | O40: n/a | P40: n/a | Q40: n/a
B41: Western Transmission System | C41: 0.7111035714 | D41: 0.6844071429 | E41: 0.6900664286 | F41: 0.7086642857 | G41: 0.6553637707 | H41: 0.572763688 | I41: 0.5637393712 | J41: 0.5530088547 | K41: 0.5489957398 | L41: 0.5433654046 | M41: n/a | N41: n/a | O41: n/a | P41: n/a | Q41: n/a
B42: New South Wales Interconnect (to Vic) | C42: ='12. Demand'!C62/'13. Pipeline capacity'!C18 -> 0.1355607282 | D42: ='12. Demand'!D62/'13. Pipeline capacity'!D18 -> 0.7058361275 | E42: ='12. Demand'!E62/'13. Pipeline capacity'!E18 -> 0.48010152 | F42: ='12. Demand'!F62/'13. Pipeline capacity'!F18 -> 0.52776656 | G42: ='12. Demand'!G62/'13. Pipeline capacity'!G18 -> 0.52776656 | H42: ='12. Demand'!H62/'13. Pipeline capacity'!H18 -> 0.52776656 | I42: ='12. Demand'!I62/'13. Pipeline capacity'!I18 -> 0.52776656 | J42: ='12. Demand'!J62/'13. Pipeline capacity'!J18 -> 0.52776656 | K42: ='12. Demand'!K62/'13. Pipeline capacity'!K18 -> 0.52776656 | L42: ='12. Demand'!L62/'13. Pipeline capacity'!L18 -> 0.52776656 | M42: n/a | N42: n/a | O42: n/a | P42: n/a | Q42: n/a
B43: New South Wales Interconnect (from Vic (summer)) | C43: 1.000247108 | D43: 1.02814988 | E43: 0.6817794444 | F43: 0.8168715541 | G43: 0.9274408663 | H43: 0.9274408663 | I43: 0.9274408663 | J43: 0.9274408663 | K43: 0.9274408663 | L43: 0.9274408663 | M43: n/a | N43: n/a | O43: n/a | P43: n/a | Q43: n/a
B44: New South Wales Interconnect (from Vic (winter)) | C44: 1.677019565 | D44: 1.36446 | E44: 2.087704386 | F44: 1.088244237 | G44: 0 | H44: 0 | I44: 0 | J44: 0 | K44: 0 | L44: 0 | M44: n/a | N44: n/a | O44: n/a | P44: n/a | Q44: n/a
B48: For the purposes of calculating utilisation of SW Pipelne capacity, injections from Poert Campbell are deducted in order to derive the volumes of gas actually travelling westbound on the SW Pipelne.
B50: 12.1 Withdrawals – Peak Volume – by location
C51: Actual TJ/D | F51: Forecast TJ/day
C52: 2013 | D52: 2014 | E52: 2015 | F52: 2016 | G52: 2017 | H52: 2018 | I52: 2019 | J52: 2020 | K52: 2021 | L52: 2022 | M52: 2023 | N52: 2024 | O52: 2025 | P52: 2026 | Q52: 2027
B53: Exports Port Campbell
B54: minimum withdrawals | C54: 0 | D54: 0 | E54: 0 | F54: 0
B55: maximum withdrawals | C55: 98.7 | D55: 105.4 | E55: 91.2 | F55: 104 | G55: =AVERAGE(C55:F55) -> 99.825 | H55: =+G55 -> 99.825 | I55: =+H55*I16/H16 -> 146.8014706 | J55: =+I55 -> 146.8014706 | K55: 146.8014706 | L55: 146.8014706
B56: average withdrawals | C56: 26.22 | D56: 27.26 | E56: 30.495 | F56: 21.26 | G56: =AVERAGE(C56:F56) -> 26.30875 | H56: =+G56 -> 26.30875 | I56: =+H56 -> 26.30875 | J56: 26.30875 | K56: 26.30875 | L56: 26.30875

Sheet 14. Bill impacts
B1: REGULATORY REPORTING STATEMENT
B2: APA VTS Australia (Operations) Pty Ltd
B3: 2018 to 2022
B4: 14. INDICATIVE BILL IMPACTS
B7: This worksheet uses assumptions and calculations determined by the AER. These assumptions and outcomes shown are not part of the APA VTS access arrangement proposal. APA VTS is to insert its access arrangement proposal values for forecast inflation and X factors in table 14.3. If APA VTS proposes alternative: (a) transmission cost proportion of a typical customer's gas bill; (b) annual gas bill amount for a typical residential customer; (c) annual gas bill amount for a typical small business customer – it may insert these in the relevant input cells and source appropriately.
B10: 14 - INDICATIVE IMPACT OF THE REGULATORY PROPOSAL ON THE AVERAGE RESIDENTIAL AND SMALL BUSINESS CUSTOMER GAS BILLS
D12: Residential | E12: Small business (<10Tj)
B13: Transmission costs as a proportion of a typical customer's gas bill (per cent) | D13: =AVERAGE(G140,N140) -> 0.02065853485 | E13: =AVERAGE(W139,AG139) -> 0.02814802701
B14: Source(s) of data: | D14: See Analysis below
B16: 14.1 - TYPICAL GAS BILL - RESIDENTIAL CUSTOMER
B17: Tariff type | D17: Description of tariff type | E17: Annual bill amount 2017
B18: Residential | D18: See below | E18: =AVERAGE(G118,N118) -> 1270.51144
B19: Source(s) of data: | D19: See analysis below
B21: 14.2 - TYPICAL GAS BILL - SMALL BUSINESS CUSTOMER
B22: Tariff type | D22: Description of tariff type | E22: Annual bill amount 2017
B23: Small business (<10Tj) | D23: See below | E23: =AVERAGE(W117,AG117) -> 7774.9955
B24: Source(s) of data: | D24: See analysis below
B26: 14.3 - INDICATIVE ANNUAL AVERAGE TRANSMISSION PRICE IMPACT
D27: 2017 | E27: 2018 | F27: 2019 | G27: 2020 | H27: 2021 | I27: 2022 | J27: Average
B28: Forecast inflation | C28: (per cent) | E28: 0.02 | F28: =+E28 -> 0.02 | G28: =+F28 -> 0.02 | H28: =+G28 -> 0.02 | I28: =+H28 -> 0.02
B29: Forecast X factors | C29: (per cent) | E29: -0.1577 | F29: -0.06 | G29: -0.06 | H29: -0.06 | I29: -0.06
B30: Forecast annual price path ($nominal) | C30: (per cent) | E30: =+(1+E28)*(1-E29)-1 -> 0.180854 | F30: =+(1+F28)*(1-F29)-1 -> 0.0812 | G30: =+(1+G28)*(1-G29)-1 -> 0.0812 | H30: =+(1+H28)*(1-H29)-1 -> 0.0812 | I30: =+(1+I28)*(1-I29)-1 -> 0.0812 | J30: =+AVERAGE(E30:I30) -> 0.1011308
B33: 14.4 - TRANSMISSION BILL COMPONENT - RESIDENTIAL CUSTOMER
D34: $0's, Nominal | K34: Annual impact on customer bill
D35: 2017 | E35: 2018 | F35: 2019 | G35: 2020 | H35: 2021 | I35: 2022 | J35: ="Total "&D35&"-"&RIGHT(I35,2) -> Total 2017-22
B36: Transmission bill component | D36: =AVERAGE(G135,N135)*(C77+C96)/1000 -> 26.25480822 | E36: =+D36*(1+E30) -> 31.0030953 | F36: =+E36*(1+F30) -> 33.52054664 | G36: =+F36*(1+G30) -> 36.24241503 | H36: =+G36*(1+H30) -> 39.18529913 | I36: =+H36*(1+I30) -> 42.36714542
B37: Annual change | E37: =+E36-D36 -> 4.748287086 | F37: =+F36-E36 -> 2.517451339 | G37: 2.721868387 | H37: 2.942884101 | I37: 3.181846289 | J37: =I36/D36-1 -> 0.6136909121 | K37: =+AVERAGE(E37:I37) -> 3.22246744
B38: Total bill (residential) | D38: =+E18 -> 1270.51144 | E38: =+D38+E37 -> 1275.259727 | F38: =+E38+F37 -> 1277.777178 | G38: 1280.499047 | H38: 1283.441931 | I38: 1286.623777
B39: % change in total bill | E39: =+E37/D38 -> 0.003737303684 | F39: =+F37/E38 -> 0.001974069505 | G39: 0.002130158868 | H39: 0.002298232168 | I39: 0.002479150956 | J39: =I38/D38-1 -> 0.01268177263 | K39: =+(I38/D38)^(1/5)-1 -> 0.002523585376
B42: 14.5 - TRANSMISSION BILL COMPONENT - SMALL BUSINESS CUSTOMER
D43: $0's, Nominal | K43: Annual impact on customer bill
D44: 2017 | E44: 2018 | F44: 2019 | G44: 2020 | H44: 2021 | I44: 2022 | J44: ="Total "&D44&"-"&RIGHT(I44,2) -> Total 2017-22
B45: Transmission bill component | D45: =+E13*E23 -> 218.8507834 | E45: =+D45*(1+E30) -> 258.4308229 | F45: =+E45*(1+F30) -> 279.4154058 | G45: =+F45*(1+G30) -> 302.1039367 | H45: =+G45*(1+H30) -> 326.6347764 | I45: =+H45*(1+I30) -> 353.1575202
B46: Annual change | E46: =+E45-D45 -> 39.58003957 | F46: =+F45-E45 -> 20.98458282 | G46: 22.68853095 | H46: 24.53083966 | I46: 26.52274384 | J46: =I45/D45-1 -> 0.6136909121 | K46: =+AVERAGE(E46:I46) -> 26.86134737
B47: Total bill (small business <10Tj) | D47: =+E23 -> 7774.9955 | E47: =+D47+E46 -> 7814.57554 | F47: =+E47+F46 -> 7835.560122 | G47: 7858.248653 | H47: 7882.779493 | I47: 7909.302237
B48: % change in total bill | E48: =+E46/D47 -> 0.005090683277 | F48: =+F46/E47 -> 0.002685313197 | G48: 0.002895585075 | H48: 0.00312166753 | I48: 0.003364643634 | J48: =I47/D47-1 -> 0.01727418837 | K48: =+(I47/D47)^(1/5)-1 -> 0.003431210334
C51: AGL Residential Saver Tariff Applicable from 1 December 2016: Postcode 3220 | J51: AGL Residential Saver Tariff Applicable from 1 December 2016: Postcode 3987 | Q51: AGL Geelong Business Saver tariffs from 1 September 2016 Postcode 3220 | Z51: AGL Business Saver Tariff Applicable from 1 December 2016: Postcode 3987
C74: Assumption: consumer uses 60 GJ/year: 45GJ over the 4 months of winter and 15 GJ over the 8 months of summer | J74: Assumption: consumer uses 60 GJ/year: 45GJ over the 4 months of winter and 15 GJ over the 8 months of summer | Q74: Geelong Business | Z74: Metro South East
B76: Winter consumption costs: | Q76: Assumption: consumer uses 500 GJ/year: 166GJ over the 4 months of winter and 334 GJ over the 8 months of summer (ie no seasonality of usage) | Z76: Assumption: consumer uses 500 GJ/year: 166GJ over the 4 months of winter and 334 GJ over the 8 months of summer (ie no seasonality of usage)
B77: Total winter consumtion | C77: 45000 | D77: MJ | J77: 45000 | K77: MJ
B78: Number of 2-month periods | C78: 2 | J78: 2 | Q78: Winter consumption costs: | Z78: Winter consumption costs:
B79: Consumption per 2-month period | C79: =+C77/C78 -> 22500 | D79: MJ | J79: =+J77/J78 -> 22500 | K79: MJ | Q79: Total winter consumtion | U79: 166 | V79: GJ | Z79: Total winter consumtion | AE79: 166 | AF79: GJ
Q80: Number of 2-month periods | U80: 2 | Z80: Number of 2-month periods | AE80: 2
C81: Geelong | J81: Melbourne Metro South East | Q81: Consumption per 2-month period | U81: =+U79/U80 -> 83 | V81: GJ | Z81: Consumption per 2-month period | AE81: =+AE79/AE80 -> 83 | AF81: GJ
B83: For the first | C83: =6000 -> 6000 | D83: MJ @ | E83: =2.009/100 -> 0.02009 | F83: /MJ | G83: =+C83*E83 -> 120.54 | J83: =1644 -> 1644 | K83: MJ @ | L83: =2.245/100 -> 0.02245 | M83: /MJ | N83: =+J83*L83 -> 36.9078 | Q83: For the first | R83: =+U81 -> 83 | S83: GJ | T83: 15 | U83: /GJ | W83: =+R83*T83 -> 1245 | Z83: For the first | AB83: 3 | AC83: GJ | AD83: 19.94 | AE83: /GJ | AG83: =+AB83*AD83 -> 59.82
B84: For the next | C84: =6000 -> 6000 | D84: MJ @ | E84: =1.9/100 -> 0.019 | F84: /MJ | G84: =+C84*E84 -> 114 | J84: =1314 -> 1314 | K84: MJ @ | L84: =1.922/100 -> 0.01922 | M84: /MJ | N84: =+J84*L84 -> 25.25508 | Q84: For the next | R84: 0 | S84: GJ | T84: 11.78 | U84: /GJ | W84: =+R84*T84 -> 0 | Z84: For the next | AB84: 30 | AC84: GJ | AD84: 15.63 | AE84: /GJ | AG84: =+AB84*AD84 -> 468.9
B85: For the next | C85: =+C79-C83-C84 -> 10500 | D85: MJ @ | E85: =1.263/100 -> 0.01263 | F85: /MJ | G85: =+C85*E85 -> 132.615 | Z85: For the next | AB85: 49.2 | AC85: GJ | AD85: 14.35 | AE85: /GJ | AG85: =+AB85*AD85 -> 706.02
B86: For the remaining | C86: 0 | D86: MJ @ | E86: =1.222/100 -> 0.01222 | F86: /MJ | G86: =+C86*E86 -> 0 | J86: =+J79-J83-J84 -> 19542 | K86: MJ @ | L86: =1.53/100 -> 0.0153 | M86: /MJ | N86: =+J86*L86 -> 298.9926 | Q86: For the remaining | R86: 0 | S86: GJ | T86: 11.56 | U86: /GJ | W86: =+R86*T86 -> 0 | Z86: For the remaining | AB86: =+AE81-AB83-AB84-AB85 -> 0.8 | AC86: GJ | AD86: 12.06 | AE86: /GJ | AG86: =+AB86*AD86 -> 9.648
B88: Total per 2-month winter period | G88: =+G83+G84+G85+G86 -> 367.155 | N88: =+N83+N84+N86 -> 361.15548 | Q88: Total per 2-month winter period | W88: =+W83+W84+W85+W86 -> 1245 | Z88: Total per 2-month winter period | AG88: =SUM(AG83:AG87) -> 1244.388
B90: Number of 2-month periods in winter | G90: 2 | N90: 2 | Q90: Number of 2-month periods in winter | W90: 2 | Z90: Number of 2-month periods in winter | AG90: 2
B92: Total Winter gas costs | G92: =+G88*G90 -> 734.31 | N92: =+N88*N90 -> 722.31096 | Q92: Total Winter gas costs | W92: =+W88*W90 -> 2490 | Z92: Total Winter gas costs | AG92: =+AG88*AG90 -> 2488.776
B95: Summer consumption costs: | Q95: Summer consumption costs: | Z95: Summer consumption costs:
B96: Total summer consumtion | C96: 15000 | D96: MJ | J96: 15000 | K96: MJ | Q96: Total summer consumtion | U96: 334 | V96: GJ | Z96: Total summer consumtion | AE96: 334 | AF96: GJ
B97: Number of 2-month periods | C97: 4 | J97: 4 | Q97: Number of 2-month periods | U97: 4 | Z97: Number of 2-month periods | AE97: 4
B98: Consumption per 2-month period | C98: =+C96/C97 -> 3750 | D98: MJ | J98: =+J96/J97 -> 3750 | K98: MJ | Q98: Consumption per 2-month period | U98: =+U96/U97 -> 83.5 | V98: GJ | Z98: Consumption per 2-month period | AE98: =+AE96/AE97 -> 83.5 | AF98: GJ
Q100: For the first | R100: =+U98 -> 83.5 | S100: GJ | T100: 14.92 | U100: /GJ | W100: =+R100*T100 -> 1245.82 | Z100: For the first | AB100: 3 | AC100: GJ | AD100: =+AD83 -> 19.94 | AE100: /GJ | AG100: =+AB100*AD100 -> 59.82
B101: For the first | C101: =+C98 -> 3750 | D101: MJ @ | E101: =1.837/100 -> 0.01837 | F101: /MJ | G101: =+C101*E101 -> 68.8875 | J101: =1644 -> 1644 | K101: MJ @ | L101: =2.245/100 -> 0.02245 | M101: /MJ | N101: =+J101*L101 -> 36.9078 | Q101: For the next | R101: 0 | S101: GJ | T101: 11.72 | U101: /GJ | W101: =+R101*T101 -> 0 | AB101: 30 | AD101: =+AD84 -> 15.63 | AE101: /GJ | AG101: =+AB101*AD101 -> 468.9
B102: For the next | C102: 0 | D102: MJ @ | E102: =1.4/100 -> 0.014 | F102: /MJ | G102: =+C102*E102 -> 0 | J102: =1314 -> 1314 | K102: MJ @ | L102: =1.922/100 -> 0.01922 | M102: /MJ | N102: =+J102*L102 -> 25.25508 | Z102: For the next | AB102: 49.2 | AC102: GJ | AD102: 14.35 | AE102: /GJ | AG102: =+AB102*AD102 -> 706.02
B103: For the next | C103: 0 | D103: MJ @ | E103: =1.254/100 -> 0.01254 | F103: /MJ | G103: =+C103*E103 -> 0 | Q103: For the remaining | R103: 0 | S103: GJ | T103: 11.48 | U103: /GJ | W103: =+R103*T103 -> 0 | Z103: For the remaining | AB103: =+AE98-AB100-AB101-AB102 -> 1.3 | AC103: GJ | AD103: 12.06 | AE103: /GJ | AG103: =+AB103*AD103 -> 15.678
B104: For the remaining | C104: 0 | D104: MJ @ | E104: =1.134/100 -> 0.01134 | F104: /MJ | G104: =+C104*E104 -> 0 | J104: =+J98-J101-J102 -> 792 | K104: MJ @ | L104: =1.53/100 -> 0.0153 | M104: /MJ | N104: =+J104*L104 -> 12.1176
Q105: Total per 2-month winter period | W105: =+W100+W101+W102+W103 -> 1245.82 | Z105: Total per 2-month winter period | AG105: =SUM(AG100:AG104) -> 1250.418
B106: Total per 2-month period | G106: =+G101+G102+G103+G104 -> 68.8875 | N106: =+N101+N102+N104 -> 74.28048
Q107: Number of 2-month periods in summer | W107: 4 | Z107: Number of 2-month periods in summer | AG107: 4
B108: Number of 2-month periods in summer | G108: 4 | N108: 4
Q109: Total Summer gas costs | W109: =+W105*W107 -> 4983.28 | Z109: Total Summer gas costs | AG109: =+AG105*AG107 -> 5001.672
B110: Total Summer gas costs | G110: =+G106*G108 -> 275.55 | N110: =+N106*N108 -> 297.12192
Q112: Total Annual Gas costs | W112: =+W92+W109 -> 7473.28 | Z112: Total Annual Gas costs | AG112: =+AG92+AG109 -> 7490.448
B113: Total Annual Gas costs | G113: =+G92+G110 -> 1009.86 | N113: =+N92+N110 -> 1019.43288
Q115: Supply charges: | R115: 0.7711 | S115: per day | T115: 365 | U115: days | W115: =+R115*T115 -> 281.4515 | Z115: Supply charges: | AB115: 0.8351 | AC115: per day | AD115: 365 | AE115: days | AG115: =+AB115*AD115 -> 304.8115
B116: Supply charges: | C116: 0.7245 | D116: per day | E116: 365 | F116: days | G116: =+C116*E116 -> 264.4425 | J116: 0.6775 | K116: per day | L116: 365 | M116: days | N116: =+J116*L116 -> 247.2875
Q117: Total annual gas costs | W117: =+W92+W109+W115 -> 7754.7315 | Z117: Total annual gas costs | AG117: =+AG92+AG109+AG115 -> 7795.2595
B118: Total annual gas costs | G118: =+G92+G110+G116 -> 1274.3025 | N118: =+N92+N110+N116 -> 1266.72038
Q120: Average cost per GJ | W120: =+W117/(U79+U96) -> 15.509463 | X120: /GJ | Z120: Average cost per GJ | AG120: =+AG117/(AE79+AE96) -> 15.590519 | AH120: /GJ
B121: Average cost per GJ | G121: =+G118/(C77+C96)*1000 -> 21.238375 | H121: /GJ | N121: =+N118/(J77+J96)*1000 -> 21.11200633 | O121: /GJ
Q128: VTS costs: | Z128: VTS costs:
B129: VTS costs:
Q130: Injection charge: | R130: =+C131 -> 2.14 | S130: over | T130: 10 | U130: peak days | W130: =+R130*T130/365 -> 0.05863013699 | X130: /GJ | Z130: Injection charge: | AB130: =+C131 -> 2.14 | AC130: over | AD130: 10 | AE130: peak days | AG130: =+AB130*AD130/365 -> 0.05863013699 | AH130: /GJ
B131: Injection charge: | C131: 2.14 | D131: over | E131: 10 | F131: peak days | G131: =+C131*E131/365 -> 0.05863013699 | H131: /GJ | J131: =+C131 -> 2.14 | K131: over | L131: 10 | M131: peak days | N131: =+J131*L131/365 -> 0.05863013699 | O131: /GJ | Q131: Cross System Charge | R131: =+C132 -> 0.1743 | W131: =+R131 -> 0.1743 | Z131: Cross System Charge | AB131: 0 | AG131: =+AB131 -> 0
B132: Cross System Charge | C132: 0.1743 | G132: =+C132 -> 0.1743 | J132: 0 | N132: =+J132 -> 0 | Q132: Delivery charge - Geelong | W132: =+G133 -> 0.2501 | X132: /GJ | Z132: Delivery charge - Metro South East | AG132: =+N133 -> 0.3335 | AH132: /GJ
C133: Delivery charge - Geelong | G133: 0.2501 | H133: /GJ | J133: Delivery charge - Metro South East | N133: 0.3335 | O133: /GJ
Q134: Total | W134: =+W130+W131+W132 -> 0.483030137 | X134: /GJ | Z134: Total | AG134: =+AG130+AG131+AG132 -> 0.392130137 | AH134: /GJ
B135: Total | G135: =+G131+G132+G133 -> 0.483030137 | H135: /GJ | N135: =+N131+N132+N133 -> 0.392130137 | O135: /GJ
Q139: VTS charges as a proportion of total business retail gas costs: | W139: =+W134/W120 -> 0.0311442206 | Z139: VTS charges as a proportion of total retail gas costs: | AG139: =+AG134/AG120 -> 0.02515183343
B140: VTS charges as a proportion of total retail gas costs: | G140: =+G135/G121 -> 0.02274327188 | J140: VTS charges as a proportion of total retail gas costs: | N140: =+N135/N121 -> 0.01857379781

Sheet 22. WACC
B1: REGULATORY REPORTING STATEMENT
B2: APA VTS Australia (Operations) Pty Ltd
B3: 2018 to 2022
B4: 22. WACC AND CAPM PARAMETERS
B7: Instructions
B8: This template asks for inputs used to determine the weighted average cost of capital (WACC) and capital asset pricing model (CAPM).
B9: Where APA VTS intends to apply the Rate of return guideline, in tables 22.1 to 22.4 enter the relevant value or formula used for each item.
B10: Where APA VTS does not intend to apply the Rate of return guideline, APA VTS should provide a separate model, which shows the build-up of its forecast rate of return.
B13: 22 - WACC AND CAPM PARAMETERS
B14: 22.1 - Rate of return on equity
B15: Nominated (placeholder) equity averaging period (if nominated) | C15: 20 trading days to 31 October 2016
B17: Nominated equity averaging period (if nominated) | D17: CONFIDENTIAL
B18: Nominal risk free rate | C18: 0.0224
B19: Equity term -risk free rate | C19: 10 years
B20: Inflation rate | C20: 0.02
B21: Market risk premium | C21: 0.0776
B22: Equity beta | C22: 0.8
B23: Equity risk premium | C23: 0.0626
B25: 22.2 - Rate of return on debt - Transition - 'trailing average' approach
B26: Year 1 nominated (placeholder) debt averaging period (if nominated) | C26: 20 trading days to 31 October 2016
B28: Year 1 nominated debt averaging period | D28: CONFIDENTIAL
B29: Year 2 nominated debt averaging period | D29: CONFIDENTIAL
B30: Year 3 nominated debt averaging period | D30: CONFIDENTIAL
B31: Year 4 nominated debt averaging period | D31: CONFIDENTIAL
B32: Year 5 nominated debt averaging period | D32: CONFIDENTIAL
B33: Credit rating | C33: BBB+
B34: Debt term | C34: 10 years
B35: 3rd party debt proxy/ies (e.g. 50% RBA BBB and 50% Bloomberg BBB) | C35: RBA BBB
B36: Effective annual yield to maturity for debt for each year of the regulatory control period (insert formula for calculation for each year) | C36: (1 + Interpolated yield/2)^2 - 1
B38: 22.3 - Other WACC parameters
B39: Corporate tax rate | C39: 0.3
B40: Value of imputation credits (gamma) | C40: 0.25
B41: Debt to equity ratio | C41: 0.6
B43: 22.4 - Debt and equity raising expenditure
B44: Equity raising expenditure | C44: 0.03 | D44: See APA VTS post-tax revenue model
B45: Debt raising expenditure | C45: 0.0001 | D45: See APA VTS post-tax revenue model
B47: 22.5 - Cost of capital measures
B48: Return on equity (nominal post-tax) | C48: 0.085
B49: Return on debt (nominal post-tax) | C49: 0.0747 | D49: Model provided as attachment to APA VTS Submission
B50: Weighted cost of capital (nominal vanilla) | C50: 0.0788
